{"text_format":"1","workbook":"xlsx","n_sheets":6,"sheets":["Bestellübersicht","Frühstück und Coffee Break","Sandwiches & Apéro","Lunch","Dessert","Getränke"],"not_rendered":{"charts":0,"images":10,"macros":1,"external_links":0,"defined_names":12,"comments":0,"pivot_tables":0},"unopened":[],"bounds":{"document_bytes":16777216,"sheet_cells":100000,"rows_first":2000,"rows_last":500,"rows_between":2000,"halvings":0,"cell_chars":16384,"cell_head_chars":4096},"cells_cut":0,"cells_raw":0,"read":"whole","date_system":"1900"}

{"sheet":"Bestellübersicht","index":0,"n_rows":258,"n_cols":8,"rows_kept":258,"cut":false,"hidden":false,"merged":[[6,1,6,7],[12,1,12,7],[15,1,15,7],[16,1,16,7],[13,1,13,7],[10,1,10,7],[14,2,14,3],[14,6,14,7],[11,1,11,7],[23,1,23,7],[24,1,24,7],[25,1,25,7],[22,1,22,7],[19,1,20,7]]}
[" Bestellung Catering"]
[]
["Bitte bestellen Sie 5 Werktage im Voraus per Mail an riversideinn@eurest.ch"]
[]
["Bestellangaben"]
["Navigieren Sie ganz unkompiziert durch das Bestellformular."]
["Name des Bestellers"]
["Telefon"]
["E-Mail"]
["Kostenstelle / Abteilung"]
["Aufladung Verpflegungskarte","CHF "]
["SAP Nummer"]
["Bestelldatum"]
["Art der Bestellung"]
["Datum und Zeit des Events / Lieferung","Datum",null,null,"Zeit"]
["Lieferort (nur bei Lieferung)"]
["Zeit Retouren (nur bei Lieferung)"]
["Service gewünscht / Zeit",null,"von","00.00",null,"bis ","00.00"]
["Zahlungsart"]
["Kommentar"]
[]
["Rechnungsadresse"]
["Firma"]
["Abteilung"]
["Strasse"]
["Ort"]
[]
["Ihre Bestellung","Einheit",null,"Preis/Einheit",null,"Anzahl",null,"Total"]
[{"$f":"'Frühstück und Coffee Break'!A7","v":"Einfaches Frühstück \nFrischer Kaffee oder Tee\nOrangensaft \nFrisches Gipfeli \nSaisonale Frucht   \nHausgemachtes Flavoured Water   "},{"$f":"'Frühstück und Coffee Break'!B7","v":"pro Person"},{"$f":"'Frühstück und Coffee Break'!C7","v":"CHF"},{"$f":"'Frühstück und Coffee Break'!D7","v":8},{"$f":"'Frühstück und Coffee Break'!E7","v":0},{"$f":"'Frühstück und Coffee Break'!F7","v":0},{"$f":"'Frühstück und Coffee Break'!G7","v":"CHF"},{"$f":"'Frühstück und Coffee Break'!H7","v":0}]
[{"$f":"'Frühstück und Coffee Break'!A8","v":"Einfaches Frühstück \nFrischer Kaffee oder Tee\nOrangensaft \nKnuspriges Brötchen\nSaisonale Frucht   \nHausgemachtes Flavoured Water   "},{"$f":"'Frühstück und Coffee Break'!B8","v":"pro Person"},{"$f":"'Frühstück und Coffee Break'!C8","v":"CHF"},{"$f":"'Frühstück und Coffee Break'!D8","v":8},{"$f":"'Frühstück und Coffee Break'!E8","v":0},{"$f":"'Frühstück und Coffee Break'!F8","v":0},{"$f":"'Frühstück und Coffee Break'!G8","v":"CHF"},{"$f":"'Frühstück und Coffee Break'!H8","v":0}]
[{"$f":"'Frühstück und Coffee Break'!A9","v":"Vital Frühstück \nFrischer Kaffee oder Tee\nOrangensaft \nFrisches Gipfeli \nButter und Konfitüre\nBirchermüesli \nSaisonale Frucht  \nHausgemachtes Flavoured Water "},{"$f":"'Frühstück und Coffee Break'!B9","v":"pro Person"},{"$f":"'Frühstück und Coffee Break'!C9","v":"CHF"},{"$f":"'Frühstück und Coffee Break'!D9","v":11},{"$f":"'Frühstück und Coffee Break'!E9","v":0},{"$f":"'Frühstück und Coffee Break'!F9","v":0},{"$f":"'Frühstück und Coffee Break'!G9","v":"CHF"},{"$f":"'Frühstück und Coffee Break'!H9","v":0}]
[{"$f":"'Frühstück und Coffee Break'!A10","v":"Vital Frühstück \nFrischer Kaffee oder Tee\nOrangensaft \nKnuspriges Brötchen\nButter und Konfitüre\nBirchermüesli \nSaisonale Frucht  \nHausgemachtes Flavoured Water "},{"$f":"'Frühstück und Coffee Break'!B10","v":"pro Person"},{"$f":"'Frühstück und Coffee Break'!C10","v":"CHF"},{"$f":"'Frühstück und Coffee Break'!D10","v":11},{"$f":"'Frühstück und Coffee Break'!E10","v":0},{"$f":"'Frühstück und Coffee Break'!F10","v":0},{"$f":"'Frühstück und Coffee Break'!G10","v":"CHF"},{"$f":"'Frühstück und Coffee Break'!H10","v":0}]
[{"$f":"'Frühstück und Coffee Break'!A11","v":"Vital Frühstück \nFrischer Kaffee oder Tee\nOrangensaft \nFrisches Gipfeli \nButter und Konfitüre\nJogurt mit Früchte Topping\nSaisonale Frucht  \nHausgemachtes Flavoured Water "},{"$f":"'Frühstück und Coffee Break'!B11","v":"pro Person"},{"$f":"'Frühstück und Coffee Break'!C11","v":"CHF"},{"$f":"'Frühstück und Coffee Break'!D11","v":11},{"$f":"'Frühstück und Coffee Break'!E11","v":0},{"$f":"'Frühstück und Coffee Break'!F11","v":0},{"$f":"'Frühstück und Coffee Break'!G11","v":"CHF"},{"$f":"'Frühstück und Coffee Break'!H11","v":0}]
[{"$f":"'Frühstück und Coffee Break'!A12","v":"Vital Frühstück \nFrischer Kaffee oder Tee\nOrangensaft \nKnuspriges Brötchen\nButter und Konfitüre\nJogurt mit Früchte Topping\nSaisonale Frucht  \nHausgemachtes Flavoured Water "},{"$f":"'Frühstück und Coffee Break'!B12","v":"pro Person"},{"$f":"'Frühstück und Coffee Break'!C12","v":"CHF"},{"$f":"'Frühstück und Coffee Break'!D12","v":11},{"$f":"'Frühstück und Coffee Break'!E12","v":0},{"$f":"'Frühstück und Coffee Break'!F12","v":0},{"$f":"'Frühstück und Coffee Break'!G12","v":"CHF"},{"$f":"'Frühstück und Coffee Break'!H12","v":0}]
[{"$f":"'Frühstück und Coffee Break'!A13","v":"Glutenarmes Frühstück \nFrischer Kaffee oder Tee\nOrangensaft \nGlutenfreies Brötchen (separat verpackt)\nButter und Konfitüre\nJogurt mit Früchte Topping\nSaisonale Frucht  \nHausgemachtes Flavoured Water "},{"$f":"'Frühstück und Coffee Break'!B13","v":"pro Person"},{"$f":"'Frühstück und Coffee Break'!C13","v":"CHF"},{"$f":"'Frühstück und Coffee Break'!D13","v":19},{"$f":"'Frühstück und Coffee Break'!E13","v":0},{"$f":"'Frühstück und Coffee Break'!F13","v":0},{"$f":"'Frühstück und Coffee Break'!G13","v":"CHF"},{"$f":"'Frühstück und Coffee Break'!H13","v":0}]
[{"$f":"'Frühstück und Coffee Break'!A14","v":"Add-Ons / Snacks\nFrühstück ab 5 Personen bestellbar"},{"$f":"'Frühstück und Coffee Break'!B14","v":0},{"$f":"'Frühstück und Coffee Break'!C14","v":0},{"$f":"'Frühstück und Coffee Break'!D14","v":0},{"$f":"'Frühstück und Coffee Break'!E14","v":0},{"$f":"'Frühstück und Coffee Break'!F14","v":0},{"$f":"'Frühstück und Coffee Break'!G14","v":0},{"$f":"'Frühstück und Coffee Break'!H14","v":0}]
[{"$f":"'Frühstück und Coffee Break'!A15","v":"Buttergipfeli"},{"$f":"'Frühstück und Coffee Break'!B15","v":"pro Stück"},{"$f":"'Frühstück und Coffee Break'!C15","v":"CHF"},{"$f":"'Frühstück und Coffee Break'!D15","v":1.6},{"$f":"'Frühstück und Coffee Break'!E15","v":0},{"$f":"'Frühstück und Coffee Break'!F15","v":0},{"$f":"'Frühstück und Coffee Break'!G15","v":"CHF"},{"$f":"'Frühstück und Coffee Break'!H15","v":0}]
[{"$f":"'Frühstück und Coffee Break'!A16","v":"Laugengipfeli"},{"$f":"'Frühstück und Coffee Break'!B16","v":"pro Stück"},{"$f":"'Frühstück und Coffee Break'!C16","v":"CHF"},{"$f":"'Frühstück und Coffee Break'!D16","v":1.6},{"$f":"'Frühstück und Coffee Break'!E16","v":0},{"$f":"'Frühstück und Coffee Break'!F16","v":0},{"$f":"'Frühstück und Coffee Break'!G16","v":"CHF"},{"$f":"'Frühstück und Coffee Break'!H16","v":0}]
[{"$f":"'Frühstück und Coffee Break'!A17","v":"Rusticogipfeli"},{"$f":"'Frühstück und Coffee Break'!B17","v":"pro Stück"},{"$f":"'Frühstück und Coffee Break'!C17","v":"CHF"},{"$f":"'Frühstück und Coffee Break'!D17","v":1.6},{"$f":"'Frühstück und Coffee Break'!E17","v":0},{"$f":"'Frühstück und Coffee Break'!F17","v":0},{"$f":"'Frühstück und Coffee Break'!G17","v":"CHF"},{"$f":"'Frühstück und Coffee Break'!H17","v":0}]
[{"$f":"'Frühstück und Coffee Break'!A18","v":"Knuspriges Bürli"},{"$f":"'Frühstück und Coffee Break'!B18","v":"pro Stück"},{"$f":"'Frühstück und Coffee Break'!C18","v":"CHF"},{"$f":"'Frühstück und Coffee Break'!D18","v":2.5},{"$f":"'Frühstück und Coffee Break'!E18","v":0},{"$f":"'Frühstück und Coffee Break'!F18","v":0},{"$f":"'Frühstück und Coffee Break'!G18","v":"CHF"},{"$f":"'Frühstück und Coffee Break'!H18","v":0}]
[{"$f":"'Frühstück und Coffee Break'!A19","v":"Weggli"},{"$f":"'Frühstück und Coffee Break'!B19","v":"pro Stück"},{"$f":"'Frühstück und Coffee Break'!C19","v":"CHF"},{"$f":"'Frühstück und Coffee Break'!D19","v":2.5},{"$f":"'Frühstück und Coffee Break'!E19","v":0},{"$f":"'Frühstück und Coffee Break'!F19","v":0},{"$f":"'Frühstück und Coffee Break'!G19","v":"CHF"},{"$f":"'Frühstück und Coffee Break'!H19","v":0}]
[{"$f":"'Frühstück und Coffee Break'!A20","v":"Semmeli"},{"$f":"'Frühstück und Coffee Break'!B20","v":"pro Stück"},{"$f":"'Frühstück und Coffee Break'!C20","v":"CHF"},{"$f":"'Frühstück und Coffee Break'!D20","v":2.5},{"$f":"'Frühstück und Coffee Break'!E20","v":0},{"$f":"'Frühstück und Coffee Break'!F20","v":0},{"$f":"'Frühstück und Coffee Break'!G20","v":"CHF"},{"$f":"'Frühstück und Coffee Break'!H20","v":0}]
[{"$f":"'Frühstück und Coffee Break'!A21","v":"Früchtebrötli"},{"$f":"'Frühstück und Coffee Break'!B21","v":"pro Stück"},{"$f":"'Frühstück und Coffee Break'!C21","v":"CHF"},{"$f":"'Frühstück und Coffee Break'!D21","v":2.5},{"$f":"'Frühstück und Coffee Break'!E21","v":0},{"$f":"'Frühstück und Coffee Break'!F21","v":0},{"$f":"'Frühstück und Coffee Break'!G21","v":"CHF"},{"$f":"'Frühstück und Coffee Break'!H21","v":0}]
[{"$f":"'Frühstück und Coffee Break'!A22","v":"Körnerbrötli"},{"$f":"'Frühstück und Coffee Break'!B22","v":"pro Stück"},{"$f":"'Frühstück und Coffee Break'!C22","v":"CHF"},{"$f":"'Frühstück und Coffee Break'!D22","v":2.5},{"$f":"'Frühstück und Coffee Break'!E22","v":0},{"$f":"'Frühstück und Coffee Break'!F22","v":0},{"$f":"'Frühstück und Coffee Break'!G22","v":"CHF"},{"$f":"'Frühstück und Coffee Break'!H22","v":0}]
[{"$f":"'Frühstück und Coffee Break'!A23","v":"Dinkelbrötli"},{"$f":"'Frühstück und Coffee Break'!B23","v":"pro Stück"},{"$f":"'Frühstück und Coffee Break'!C23","v":"CHF"},{"$f":"'Frühstück und Coffee Break'!D23","v":2.5},{"$f":"'Frühstück und Coffee Break'!E23","v":0},{"$f":"'Frühstück und Coffee Break'!F23","v":0},{"$f":"'Frühstück und Coffee Break'!G23","v":"CHF"},{"$f":"'Frühstück und Coffee Break'!H23","v":0}]
[{"$f":"'Frühstück und Coffee Break'!A24","v":"Sojasemmel"},{"$f":"'Frühstück und Coffee Break'!B24","v":"pro Stück"},{"$f":"'Frühstück und Coffee Break'!C24","v":"CHF"},{"$f":"'Frühstück und Coffee Break'!D24","v":2.5},{"$f":"'Frühstück und Coffee Break'!E24","v":0},{"$f":"'Frühstück und Coffee Break'!F24","v":0},{"$f":"'Frühstück und Coffee Break'!G24","v":"CHF"},{"$f":"'Frühstück und Coffee Break'!H24","v":0}]
[{"$f":"'Frühstück und Coffee Break'!A25","v":"Jogurt mit Früchte-Topping im Glas"},{"$f":"'Frühstück und Coffee Break'!B25","v":"pro Stück"},{"$f":"'Frühstück und Coffee Break'!C25","v":"CHF"},{"$f":"'Frühstück und Coffee Break'!D25","v":2.7},{"$f":"'Frühstück und Coffee Break'!E25","v":0},{"$f":"'Frühstück und Coffee Break'!F25","v":0},{"$f":"'Frühstück und Coffee Break'!G25","v":"CHF"},{"$f":"'Frühstück und Coffee Break'!H25","v":0}]
[{"$f":"'Frühstück und Coffee Break'!A26","v":"Jogurt mit Crunch Topping im Glas"},{"$f":"'Frühstück und Coffee Break'!B26","v":"pro Stück"},{"$f":"'Frühstück und Coffee Break'!C26","v":"CHF"},{"$f":"'Frühstück und Coffee Break'!D26","v":2.7},{"$f":"'Frühstück und Coffee Break'!E26","v":0},{"$f":"'Frühstück und Coffee Break'!F26","v":0},{"$f":"'Frühstück und Coffee Break'!G26","v":"CHF"},{"$f":"'Frühstück und Coffee Break'!H26","v":0}]
[{"$f":"'Frühstück und Coffee Break'!A27","v":"Hausgemachtes Birchermüesli im Glas"},{"$f":"'Frühstück und Coffee Break'!B27","v":"pro Stück"},{"$f":"'Frühstück und Coffee Break'!C27","v":"CHF"},{"$f":"'Frühstück und Coffee Break'!D27","v":4.7},{"$f":"'Frühstück und Coffee Break'!E27","v":0},{"$f":"'Frühstück und Coffee Break'!F27","v":0},{"$f":"'Frühstück und Coffee Break'!G27","v":"CHF"},{"$f":"'Frühstück und Coffee Break'!H27","v":0}]
[{"$f":"'Frühstück und Coffee Break'!A28","v":"Veganes Birchermüesli"},{"$f":"'Frühstück und Coffee Break'!B28","v":"pro Stück"},{"$f":"'Frühstück und Coffee Break'!C28","v":"CHF"},{"$f":"'Frühstück und Coffee Break'!D28","v":3.5},{"$f":"'Frühstück und Coffee Break'!E28","v":0},{"$f":"'Frühstück und Coffee Break'!F28","v":0},{"$f":"'Frühstück und Coffee Break'!G28","v":"CHF"},{"$f":"'Frühstück und Coffee Break'!H28","v":0}]
[{"$f":"'Frühstück und Coffee Break'!A29","v":"Chiapudding"},{"$f":"'Frühstück und Coffee Break'!B29","v":"pro Stück"},{"$f":"'Frühstück und Coffee Break'!C29","v":"CHF"},{"$f":"'Frühstück und Coffee Break'!D29","v":2.5},{"$f":"'Frühstück und Coffee Break'!E29","v":0},{"$f":"'Frühstück und Coffee Break'!F29","v":0},{"$f":"'Frühstück und Coffee Break'!G29","v":"CHF"},{"$f":"'Frühstück und Coffee Break'!H29","v":0}]
[{"$f":"'Frühstück und Coffee Break'!A30","v":"Laktosefreies Jogurt"},{"$f":"'Frühstück und Coffee Break'!B30","v":"pro Stück"},{"$f":"'Frühstück und Coffee Break'!C30","v":"CHF"},{"$f":"'Frühstück und Coffee Break'!D30","v":2.5},{"$f":"'Frühstück und Coffee Break'!E30","v":0},{"$f":"'Frühstück und Coffee Break'!F30","v":0},{"$f":"'Frühstück und Coffee Break'!G30","v":"CHF"},{"$f":"'Frühstück und Coffee Break'!H30","v":0}]
[{"$f":"'Frühstück und Coffee Break'!A31","v":"Fruchtsalat im Glas"},{"$f":"'Frühstück und Coffee Break'!B31","v":"pro Stück"},{"$f":"'Frühstück und Coffee Break'!C31","v":"CHF"},{"$f":"'Frühstück und Coffee Break'!D31","v":2.5},{"$f":"'Frühstück und Coffee Break'!E31","v":0},{"$f":"'Frühstück und Coffee Break'!F31","v":0},{"$f":"'Frühstück und Coffee Break'!G31","v":"CHF"},{"$f":"'Frühstück und Coffee Break'!H31","v":0}]
[{"$f":"'Frühstück und Coffee Break'!A32","v":"Butter-und Konfitüren-Variation"},{"$f":"'Frühstück und Coffee Break'!B32","v":"pro Person"},{"$f":"'Frühstück und Coffee Break'!C32","v":"CHF"},{"$f":"'Frühstück und Coffee Break'!D32","v":2.5},{"$f":"'Frühstück und Coffee Break'!E32","v":0},{"$f":"'Frühstück und Coffee Break'!F32","v":0},{"$f":"'Frühstück und Coffee Break'!G32","v":"CHF"},{"$f":"'Frühstück und Coffee Break'!H32","v":0}]
[{"$f":"'Frühstück und Coffee Break'!A33","v":"Süsses und Spezielles"},{"$f":"'Frühstück und Coffee Break'!B33","v":0},{"$f":"'Frühstück und Coffee Break'!C33","v":0},{"$f":"'Frühstück und Coffee Break'!D33","v":0},{"$f":"'Frühstück und Coffee Break'!E33","v":0},{"$f":"'Frühstück und Coffee Break'!F33","v":0},{"$f":"'Frühstück und Coffee Break'!G33","v":0},{"$f":"'Frühstück und Coffee Break'!H33","v":0}]
[{"$f":"'Frühstück und Coffee Break'!A34","v":"Schoggigipfeli"},{"$f":"'Frühstück und Coffee Break'!B34","v":"pro Stück"},{"$f":"'Frühstück und Coffee Break'!C34","v":"CHF"},{"$f":"'Frühstück und Coffee Break'!D34","v":2.5},{"$f":"'Frühstück und Coffee Break'!E34","v":0},{"$f":"'Frühstück und Coffee Break'!F34","v":0},{"$f":"'Frühstück und Coffee Break'!G34","v":"CHF"},{"$f":"'Frühstück und Coffee Break'!H34","v":0}]
[{"$f":"'Frühstück und Coffee Break'!A35","v":"Muffins Chocolate-Vanilla"},{"$f":"'Frühstück und Coffee Break'!B35","v":"pro Stück"},{"$f":"'Frühstück und Coffee Break'!C35","v":"CHF"},{"$f":"'Frühstück und Coffee Break'!D35","v":2.5},{"$f":"'Frühstück und Coffee Break'!E35","v":0},{"$f":"'Frühstück und Coffee Break'!F35","v":0},{"$f":"'Frühstück und Coffee Break'!G35","v":"CHF"},{"$f":"'Frühstück und Coffee Break'!H35","v":0}]
[{"$f":"'Frühstück und Coffee Break'!A36","v":"Muffins Lemon Meringue"},{"$f":"'Frühstück und Coffee Break'!B36","v":"pro Stück"},{"$f":"'Frühstück und Coffee Break'!C36","v":"CHF"},{"$f":"'Frühstück und Coffee Break'!D36","v":2.5},{"$f":"'Frühstück und Coffee Break'!E36","v":0},{"$f":"'Frühstück und Coffee Break'!F36","v":0},{"$f":"'Frühstück und Coffee Break'!G36","v":"CHF"},{"$f":"'Frühstück und Coffee Break'!H36","v":0}]
[{"$f":"'Frühstück und Coffee Break'!A37","v":"Muffins Salted Caramel"},{"$f":"'Frühstück und Coffee Break'!B37","v":"pro Stück"},{"$f":"'Frühstück und Coffee Break'!C37","v":"CHF"},{"$f":"'Frühstück und Coffee Break'!D37","v":2.5},{"$f":"'Frühstück und Coffee Break'!E37","v":0},{"$f":"'Frühstück und Coffee Break'!F37","v":0},{"$f":"'Frühstück und Coffee Break'!G37","v":"CHF"},{"$f":"'Frühstück und Coffee Break'!H37","v":0}]
[{"$f":"'Frühstück und Coffee Break'!A38","v":"Muffins Apple-Cinnamon"},{"$f":"'Frühstück und Coffee Break'!B38","v":"pro Stück"},{"$f":"'Frühstück und Coffee Break'!C38","v":"CHF"},{"$f":"'Frühstück und Coffee Break'!D38","v":2.5},{"$f":"'Frühstück und Coffee Break'!E38","v":0},{"$f":"'Frühstück und Coffee Break'!F38","v":0},{"$f":"'Frühstück und Coffee Break'!G38","v":"CHF"},{"$f":"'Frühstück und Coffee Break'!H38","v":0}]
[{"$f":"'Frühstück und Coffee Break'!A39","v":"Muffins Blueberry"},{"$f":"'Frühstück und Coffee Break'!B39","v":"pro Stück"},{"$f":"'Frühstück und Coffee Break'!C39","v":"CHF"},{"$f":"'Frühstück und Coffee Break'!D39","v":2.5},{"$f":"'Frühstück und Coffee Break'!E39","v":0},{"$f":"'Frühstück und Coffee Break'!F39","v":0},{"$f":"'Frühstück und Coffee Break'!G39","v":"CHF"},{"$f":"'Frühstück und Coffee Break'!H39","v":0}]
[{"$f":"'Frühstück und Coffee Break'!A40","v":"Dounut\n"},{"$f":"'Frühstück und Coffee Break'!B40","v":"pro Stück"},{"$f":"'Frühstück und Coffee Break'!C40","v":"CHF"},{"$f":"'Frühstück und Coffee Break'!D40","v":2.5},{"$f":"'Frühstück und Coffee Break'!E40","v":0},{"$f":"'Frühstück und Coffee Break'!F40","v":0},{"$f":"'Frühstück und Coffee Break'!G40","v":"CHF"},{"$f":"'Frühstück und Coffee Break'!H40","v":0}]
[{"$f":"'Frühstück und Coffee Break'!A41","v":"Brownie"},{"$f":"'Frühstück und Coffee Break'!B41","v":"pro Stück"},{"$f":"'Frühstück und Coffee Break'!C41","v":"CHF"},{"$f":"'Frühstück und Coffee Break'!D41","v":2.5},{"$f":"'Frühstück und Coffee Break'!E41","v":0},{"$f":"'Frühstück und Coffee Break'!F41","v":0},{"$f":"'Frühstück und Coffee Break'!G41","v":"CHF"},{"$f":"'Frühstück und Coffee Break'!H41","v":0}]
[{"$f":"'Frühstück und Coffee Break'!A42","v":"Mini Patisserie, assortiert"},{"$f":"'Frühstück und Coffee Break'!B42","v":"pro Person"},{"$f":"'Frühstück und Coffee Break'!C42","v":"CHF"},{"$f":"'Frühstück und Coffee Break'!D42","v":2.5},{"$f":"'Frühstück und Coffee Break'!E42","v":0},{"$f":"'Frühstück und Coffee Break'!F42","v":0},{"$f":"'Frühstück und Coffee Break'!G42","v":"CHF"},{"$f":"'Frühstück und Coffee Break'!H42","v":0}]
[{"$f":"'Frühstück und Coffee Break'!A43","v":"Fruchtspiessli"},{"$f":"'Frühstück und Coffee Break'!B43","v":"pro Stück"},{"$f":"'Frühstück und Coffee Break'!C43","v":"CHF"},{"$f":"'Frühstück und Coffee Break'!D43","v":2.5},{"$f":"'Frühstück und Coffee Break'!E43","v":0},{"$f":"'Frühstück und Coffee Break'!F43","v":0},{"$f":"'Frühstück und Coffee Break'!G43","v":"CHF"},{"$f":"'Frühstück und Coffee Break'!H43","v":0}]
[{"$f":"'Frühstück und Coffee Break'!A44","v":"Cookie-Variation"},{"$f":"'Frühstück und Coffee Break'!B44","v":"pro Person"},{"$f":"'Frühstück und Coffee Break'!C44","v":"CHF"},{"$f":"'Frühstück und Coffee Break'!D44","v":4.5},{"$f":"'Frühstück und Coffee Break'!E44","v":0},{"$f":"'Frühstück und Coffee Break'!F44","v":0},{"$f":"'Frühstück und Coffee Break'!G44","v":"CHF"},{"$f":"'Frühstück und Coffee Break'!H44","v":0}]
[{"$f":"'Frühstück und Coffee Break'!A45","v":"Waffel"},{"$f":"'Frühstück und Coffee Break'!B45","v":"pro Stück"},{"$f":"'Frühstück und Coffee Break'!C45","v":"CHF"},{"$f":"'Frühstück und Coffee Break'!D45","v":3.5},{"$f":"'Frühstück und Coffee Break'!E45","v":0},{"$f":"'Frühstück und Coffee Break'!F45","v":0},{"$f":"'Frühstück und Coffee Break'!G45","v":"CHF"},{"$f":"'Frühstück und Coffee Break'!H45","v":0}]
[{"$f":"'Frühstück und Coffee Break'!A46","v":"Bagel mit Frischkäsefüllung "},{"$f":"'Frühstück und Coffee Break'!B46","v":"pro Stück"},{"$f":"'Frühstück und Coffee Break'!C46","v":"CHF"},{"$f":"'Frühstück und Coffee Break'!D46","v":8.5},{"$f":"'Frühstück und Coffee Break'!E46","v":0},{"$f":"'Frühstück und Coffee Break'!F46","v":0},{"$f":"'Frühstück und Coffee Break'!G46","v":"CHF"},{"$f":"'Frühstück und Coffee Break'!H46","v":0}]
[{"$f":"'Frühstück und Coffee Break'!A47","v":"Coffee Break\nCoffee Break ab 5 Personen bestellbar"},{"$f":"'Frühstück und Coffee Break'!B47","v":0},{"$f":"'Frühstück und Coffee Break'!C47","v":0},{"$f":"'Frühstück und Coffee Break'!D47","v":0},{"$f":"'Frühstück und Coffee Break'!E47","v":0},{"$f":"'Frühstück und Coffee Break'!F47","v":0},{"$f":"'Frühstück und Coffee Break'!G47","v":0},{"$f":"'Frühstück und Coffee Break'!H47","v":0}]
[{"$f":"'Frühstück und Coffee Break'!A48","v":"Swiss Break\nFrischer Kaffee oder Tee\nOrangensaft \nSüssgebäck assortiert\nSaisonaler Früchtekorb \nHausgemachtes Flavoured Water "},{"$f":"'Frühstück und Coffee Break'!B48","v":"pro Person"},{"$f":"'Frühstück und Coffee Break'!C48","v":"CHF"},{"$f":"'Frühstück und Coffee Break'!D48","v":9},{"$f":"'Frühstück und Coffee Break'!E48","v":0},{"$f":"'Frühstück und Coffee Break'!F48","v":0},{"$f":"'Frühstück und Coffee Break'!G48","v":"CHF"},{"$f":"'Frühstück und Coffee Break'!H48","v":0}]
[{"$f":"'Frühstück und Coffee Break'!A49","v":"French Break\nFrischer Kaffee oder Tee\nOrangensaft  \nBrioche / Croissant\nSaisonaler Früchtekorb\nHausgemachtes Flavoured Water"},{"$f":"'Frühstück und Coffee Break'!B49","v":"pro Person"},{"$f":"'Frühstück und Coffee Break'!C49","v":"CHF"},{"$f":"'Frühstück und Coffee Break'!D49","v":9},{"$f":"'Frühstück und Coffee Break'!E49","v":0},{"$f":"'Frühstück und Coffee Break'!F49","v":0},{"$f":"'Frühstück und Coffee Break'!G49","v":"CHF"},{"$f":"'Frühstück und Coffee Break'!H49","v":0}]
[{"$f":"'Frühstück und Coffee Break'!A50","v":"Bayrisch Break\nFrischer Kaffee oder Tee\nBretzel\nBlechkuchen\nHausgemachtes Flavoured Water "},{"$f":"'Frühstück und Coffee Break'!B50","v":"pro Person"},{"$f":"'Frühstück und Coffee Break'!C50","v":"CHF"},{"$f":"'Frühstück und Coffee Break'!D50","v":11},{"$f":"'Frühstück und Coffee Break'!E50","v":0},{"$f":"'Frühstück und Coffee Break'!F50","v":0},{"$f":"'Frühstück und Coffee Break'!G50","v":"CHF"},{"$f":"'Frühstück und Coffee Break'!H50","v":0}]
[{"$f":"'Sandwiches & Apéro'!A7","v":"Kleine Apéro Sandwiches\n(3 Brötchen pro Person)\nVariation an Laugenbrötchen, Rusticobrötchen, \nBrioche und Mini Bürli, gefüllt mit\nThon-Mousse, Frischkäse, Rohschinken, Käse und gegrilltem Gemüse\n"},{"$f":"'Sandwiches & Apéro'!B7","v":"pro Person"},{"$f":"'Sandwiches & Apéro'!C7","v":"CHF"},{"$f":"'Sandwiches & Apéro'!D7","v":9},{"$f":"'Sandwiches & Apéro'!E7","v":0},{"$f":"'Sandwiches & Apéro'!F7","v":0},{"$f":"'Sandwiches & Apéro'!G7","v":"CHF"},{"$f":"'Sandwiches & Apéro'!H7","v":0}]
[{"$f":"'Sandwiches & Apéro'!A8","v":"Steinofenbaguette, 52cm\n(reicht für ca. 6 Personen)\nKnuspriges Baguette gefüllt mit Schinken, Salami, Fleischkäse\nund Käse, garniert mit Salat, Gürkchen und Tomaten\n"},{"$f":"'Sandwiches & Apéro'!B8","v":"pro Stück"},{"$f":"'Sandwiches & Apéro'!C8","v":"CHF"},{"$f":"'Sandwiches & Apéro'!D8","v":22.5},{"$f":"'Sandwiches & Apéro'!E8","v":0},{"$f":"'Sandwiches & Apéro'!F8","v":0},{"$f":"'Sandwiches & Apéro'!G8","v":"CHF"},{"$f":"'Sandwiches & Apéro'!H8","v":0}]
[{"$f":"'Sandwiches & Apéro'!A9","v":"Steinofenbaguette, 52cm vegan\n(reicht für ca. 6 Personen)\nKnuspriges Baguette gefüllt mit Avocado mit weissen Bohnen, Antipasti und Räuchertofu und Hummus\n"},{"$f":"'Sandwiches & Apéro'!B9","v":"pro Stück"},{"$f":"'Sandwiches & Apéro'!C9","v":"CHF"},{"$f":"'Sandwiches & Apéro'!D9","v":31},{"$f":"'Sandwiches & Apéro'!E9","v":0},{"$f":"'Sandwiches & Apéro'!F9","v":0},{"$f":"'Sandwiches & Apéro'!G9","v":"CHF"},{"$f":"'Sandwiches & Apéro'!H9","v":0}]
[{"$f":"'Sandwiches & Apéro'!A10","v":"Triangle Sandwich\nGerösteter Toast gefüllt mit Schinken und Käse\n\n"},{"$f":"'Sandwiches & Apéro'!B10","v":"pro Stück"},{"$f":"'Sandwiches & Apéro'!C10","v":"CHF"},{"$f":"'Sandwiches & Apéro'!D10","v":6.5},{"$f":"'Sandwiches & Apéro'!E10","v":0},{"$f":"'Sandwiches & Apéro'!F10","v":0},{"$f":"'Sandwiches & Apéro'!G10","v":"CHF"},{"$f":"'Sandwiches & Apéro'!H10","v":0}]
[{"$f":"'Sandwiches & Apéro'!A11","v":"Triangle Sandwich\nGerösteter Toast gefüllt mit Thonmousse"},{"$f":"'Sandwiches & Apéro'!B11","v":"pro Stück"},{"$f":"'Sandwiches & Apéro'!C11","v":"CHF"},{"$f":"'Sandwiches & Apéro'!D11","v":6.5},{"$f":"'Sandwiches & Apéro'!E11","v":0},{"$f":"'Sandwiches & Apéro'!F11","v":0},{"$f":"'Sandwiches & Apéro'!G11","v":"CHF"},{"$f":"'Sandwiches & Apéro'!H11","v":0}]
[{"$f":"'Sandwiches & Apéro'!A12","v":"Triangle Sandwich\nGerösteter Toast gefüllt mit Eimousse "},{"$f":"'Sandwiches & Apéro'!B12","v":"pro Stück"},{"$f":"'Sandwiches & Apéro'!C12","v":"CHF"},{"$f":"'Sandwiches & Apéro'!D12","v":6.5},{"$f":"'Sandwiches & Apéro'!E12","v":0},{"$f":"'Sandwiches & Apéro'!F12","v":0},{"$f":"'Sandwiches & Apéro'!G12","v":"CHF"},{"$f":"'Sandwiches & Apéro'!H12","v":0}]
[{"$f":"'Sandwiches & Apéro'!A13","v":"Triangle Sandwich\nGerösteter Toast gefüllt mit Kräuterfrischkäse"},{"$f":"'Sandwiches & Apéro'!B13","v":"pro Stück"},{"$f":"'Sandwiches & Apéro'!C13","v":"CHF"},{"$f":"'Sandwiches & Apéro'!D13","v":6.5},{"$f":"'Sandwiches & Apéro'!E13","v":0},{"$f":"'Sandwiches & Apéro'!F13","v":0},{"$f":"'Sandwiches & Apéro'!G13","v":"CHF"},{"$f":"'Sandwiches & Apéro'!H13","v":0}]
[{"$f":"'Sandwiches & Apéro'!A14","v":"Triangle Sandwich vegan\nGerösteter Toast gefüllt mit Avocado und weissen Bohnen"},{"$f":"'Sandwiches & Apéro'!B14","v":"pro Stück"},{"$f":"'Sandwiches & Apéro'!C14","v":"CHF"},{"$f":"'Sandwiches & Apéro'!D14","v":6.5},{"$f":"'Sandwiches & Apéro'!E14","v":0},{"$f":"'Sandwiches & Apéro'!F14","v":0},{"$f":"'Sandwiches & Apéro'!G14","v":"CHF"},{"$f":"'Sandwiches & Apéro'!H14","v":0}]
[{"$f":"'Sandwiches & Apéro'!A15","v":"Triangle Sandwich vegan\nGerösteter Toast gefüllt mit Antipasti\n"},{"$f":"'Sandwiches & Apéro'!B15","v":"pro Stück"},{"$f":"'Sandwiches & Apéro'!C15","v":"CHF"},{"$f":"'Sandwiches & Apéro'!D15","v":6.5},{"$f":"'Sandwiches & Apéro'!E15","v":0},{"$f":"'Sandwiches & Apéro'!F15","v":0},{"$f":"'Sandwiches & Apéro'!G15","v":"CHF"},{"$f":"'Sandwiches & Apéro'!H15","v":0}]
[{"$f":"'Sandwiches & Apéro'!A16","v":"Triangle Sandwich vegan\nGerösteter Toast gefüllt mit Räuchertofu und Hummus\n"},{"$f":"'Sandwiches & Apéro'!B16","v":"pro Stück"},{"$f":"'Sandwiches & Apéro'!C16","v":"CHF"},{"$f":"'Sandwiches & Apéro'!D16","v":6.5},{"$f":"'Sandwiches & Apéro'!E16","v":0},{"$f":"'Sandwiches & Apéro'!F16","v":0},{"$f":"'Sandwiches & Apéro'!G16","v":"CHF"},{"$f":"'Sandwiches & Apéro'!H16","v":0}]
[{"$f":"'Sandwiches & Apéro'!A17","v":"Canapées \nWeizentoast belegt mit Ei\n"},{"$f":"'Sandwiches & Apéro'!B17","v":"pro Stück"},{"$f":"'Sandwiches & Apéro'!C17","v":"CHF"},{"$f":"'Sandwiches & Apéro'!D17","v":3.5},{"$f":"'Sandwiches & Apéro'!E17","v":0},{"$f":"'Sandwiches & Apéro'!F17","v":0},{"$f":"'Sandwiches & Apéro'!G17","v":"CHF"},{"$f":"'Sandwiches & Apéro'!H17","v":0}]
[{"$f":"'Sandwiches & Apéro'!A18","v":"Canapées\nWeizentoast belegt mit Spargel\n"},{"$f":"'Sandwiches & Apéro'!B18","v":"pro Stück"},{"$f":"'Sandwiches & Apéro'!C18","v":"CHF"},{"$f":"'Sandwiches & Apéro'!D18","v":3.5},{"$f":"'Sandwiches & Apéro'!E18","v":0},{"$f":"'Sandwiches & Apéro'!F18","v":0},{"$f":"'Sandwiches & Apéro'!G18","v":"CHF"},{"$f":"'Sandwiches & Apéro'!H18","v":0}]
[{"$f":"'Sandwiches & Apéro'!A19","v":"Canapées \nWeizentoast belegt mit Lachs\n"},{"$f":"'Sandwiches & Apéro'!B19","v":"pro Stück"},{"$f":"'Sandwiches & Apéro'!C19","v":"CHF"},{"$f":"'Sandwiches & Apéro'!D19","v":3.5},{"$f":"'Sandwiches & Apéro'!E19","v":0},{"$f":"'Sandwiches & Apéro'!F19","v":0},{"$f":"'Sandwiches & Apéro'!G19","v":"CHF"},{"$f":"'Sandwiches & Apéro'!H19","v":0}]
[{"$f":"'Sandwiches & Apéro'!A20","v":"Canapées\nWeizentoast belegt mit Thonmousse \n"},{"$f":"'Sandwiches & Apéro'!B20","v":"pro Stück"},{"$f":"'Sandwiches & Apéro'!C20","v":"CHF"},{"$f":"'Sandwiches & Apéro'!D20","v":3.5},{"$f":"'Sandwiches & Apéro'!E20","v":0},{"$f":"'Sandwiches & Apéro'!F20","v":0},{"$f":"'Sandwiches & Apéro'!G20","v":"CHF"},{"$f":"'Sandwiches & Apéro'!H20","v":0}]
[{"$f":"'Sandwiches & Apéro'!A21","v":"Canapées\nWeizentoast belegt mit Rindstatar\n"},{"$f":"'Sandwiches & Apéro'!B21","v":"pro Stück"},{"$f":"'Sandwiches & Apéro'!C21","v":"CHF"},{"$f":"'Sandwiches & Apéro'!D21","v":3.5},{"$f":"'Sandwiches & Apéro'!E21","v":0},{"$f":"'Sandwiches & Apéro'!F21","v":0},{"$f":"'Sandwiches & Apéro'!G21","v":"CHF"},{"$f":"'Sandwiches & Apéro'!H21","v":0}]
[{"$f":"'Sandwiches & Apéro'!A22","v":"Vollkorn Canapées\nVollkorntoast belegt mit Ei\n"},{"$f":"'Sandwiches & Apéro'!B22","v":"pro Stück"},{"$f":"'Sandwiches & Apéro'!C22","v":"CHF"},{"$f":"'Sandwiches & Apéro'!D22","v":3.5},{"$f":"'Sandwiches & Apéro'!E22","v":0},{"$f":"'Sandwiches & Apéro'!F22","v":0},{"$f":"'Sandwiches & Apéro'!G22","v":"CHF"},{"$f":"'Sandwiches & Apéro'!H22","v":0}]
[{"$f":"'Sandwiches & Apéro'!A23","v":"Vollkorn Canapées\nVollkorntoast belegt mit Spargel\n\n"},{"$f":"'Sandwiches & Apéro'!B23","v":"pro Stück"},{"$f":"'Sandwiches & Apéro'!C23","v":"CHF"},{"$f":"'Sandwiches & Apéro'!D23","v":3.5},{"$f":"'Sandwiches & Apéro'!E23","v":0},{"$f":"'Sandwiches & Apéro'!F23","v":0},{"$f":"'Sandwiches & Apéro'!G23","v":"CHF"},{"$f":"'Sandwiches & Apéro'!H23","v":0}]
[{"$f":"'Sandwiches & Apéro'!A24","v":"Vollkorn Canapées\nVollkorntoast belegt mit Lachs \n"},{"$f":"'Sandwiches & Apéro'!B24","v":"pro Stück"},{"$f":"'Sandwiches & Apéro'!C24","v":"CHF"},{"$f":"'Sandwiches & Apéro'!D24","v":3.5},{"$f":"'Sandwiches & Apéro'!E24","v":0},{"$f":"'Sandwiches & Apéro'!F24","v":0},{"$f":"'Sandwiches & Apéro'!G24","v":"CHF"},{"$f":"'Sandwiches & Apéro'!H24","v":0}]
[{"$f":"'Sandwiches & Apéro'!A25","v":"Vollkorn Canapées\nVollkorntoast belegt mit Thonmousse "},{"$f":"'Sandwiches & Apéro'!B25","v":"pro Stück"},{"$f":"'Sandwiches & Apéro'!C25","v":"CHF"},{"$f":"'Sandwiches & Apéro'!D25","v":3.5},{"$f":"'Sandwiches & Apéro'!E25","v":0},{"$f":"'Sandwiches & Apéro'!F25","v":0},{"$f":"'Sandwiches & Apéro'!G25","v":"CHF"},{"$f":"'Sandwiches & Apéro'!H25","v":0}]
[{"$f":"'Sandwiches & Apéro'!A26","v":"Vollkorn Canapées\nVollkorntoast belegt mit Rindstatar"},{"$f":"'Sandwiches & Apéro'!B26","v":"pro Stück"},{"$f":"'Sandwiches & Apéro'!C26","v":"CHF"},{"$f":"'Sandwiches & Apéro'!D26","v":3.5},{"$f":"'Sandwiches & Apéro'!E26","v":0},{"$f":"'Sandwiches & Apéro'!F26","v":0},{"$f":"'Sandwiches & Apéro'!G26","v":"CHF"},{"$f":"'Sandwiches & Apéro'!H26","v":0}]
[{"$f":"'Sandwiches & Apéro'!A27","v":"Apéro"},{"$f":"'Sandwiches & Apéro'!B27","v":0},{"$f":"'Sandwiches & Apéro'!C27","v":0},{"$f":"'Sandwiches & Apéro'!D27","v":0},{"$f":"'Sandwiches & Apéro'!E27","v":0},{"$f":"'Sandwiches & Apéro'!F27","v":0},{"$f":"'Sandwiches & Apéro'!G27","v":0},{"$f":"'Sandwiches & Apéro'!H27","v":0}]
[{"$f":"'Sandwiches & Apéro'!A28","v":"Varianten\nApéro Variationen ab 10 Personen bestellbar"},{"$f":"'Sandwiches & Apéro'!B28","v":0},{"$f":"'Sandwiches & Apéro'!C28","v":0},{"$f":"'Sandwiches & Apéro'!D28","v":0},{"$f":"'Sandwiches & Apéro'!E28","v":0},{"$f":"'Sandwiches & Apéro'!F28","v":0},{"$f":"'Sandwiches & Apéro'!G28","v":0},{"$f":"'Sandwiches & Apéro'!H28","v":0}]
[{"$f":"'Sandwiches & Apéro'!A29","v":"Small Apéro\nKleine Apéro Sandwiches assortiert\nFruchtsalat im Glas"},{"$f":"'Sandwiches & Apéro'!B29","v":"pro Person"},{"$f":"'Sandwiches & Apéro'!C29","v":"CHF"},{"$f":"'Sandwiches & Apéro'!D29","v":15},{"$f":"'Sandwiches & Apéro'!E29","v":0},{"$f":"'Sandwiches & Apéro'!F29","v":0},{"$f":"'Sandwiches & Apéro'!G29","v":"CHF"},{"$f":"'Sandwiches & Apéro'!H29","v":0}]
[{"$f":"'Sandwiches & Apéro'!A30","v":"Medium Apéro\nParty Schinkengipfel\nMini Chäschüechli\nMozzarella-Tomaten Spiess\nZucchini-Röllchen gefüllt mit Frischkäse\nHackbällchen in pikanter Tomatensauce im Glas"},{"$f":"'Sandwiches & Apéro'!B30","v":"pro Person"},{"$f":"'Sandwiches & Apéro'!C30","v":"CHF"},{"$f":"'Sandwiches & Apéro'!D30","v":19.5},{"$f":"'Sandwiches & Apéro'!E30","v":0},{"$f":"'Sandwiches & Apéro'!F30","v":0},{"$f":"'Sandwiches & Apéro'!G30","v":"CHF"},{"$f":"'Sandwiches & Apéro'!H30","v":0}]
[{"$f":"'Sandwiches & Apéro'!A31","v":"Large\nPoulet-Satay Spiessli\nGemüse-Frühlingsrolle mit Sweet Chilisauce\nGebackene Shrimps mit Dip Sauce            \nAsiatischer Gurkensalat im Glas\nAntipasti Spiessli\nGrisini mit Rohschinken\nFruchtsalat im Glas"},{"$f":"'Sandwiches & Apéro'!B31","v":"pro Person"},{"$f":"'Sandwiches & Apéro'!C31","v":"CHF"},{"$f":"'Sandwiches & Apéro'!D31","v":34},{"$f":"'Sandwiches & Apéro'!E31","v":0},{"$f":"'Sandwiches & Apéro'!F31","v":0},{"$f":"'Sandwiches & Apéro'!G31","v":"CHF"},{"$f":"'Sandwiches & Apéro'!H31","v":0}]
[{"$f":"'Sandwiches & Apéro'!A32","v":"XL Apéro                    \t\nApéro-Sandwiches mit Rauchlachs, Rohschinken oder Brie\nWrap Antipasti Style \nSamosa mit Dip Sauce\nFischknusperli mit Sauce Tartar\nBruschetta mit Tomate und Zwiebel\nKrevetten Salat Thai Style im Glas\nSaisonale Spiesse \nHausgemachtes Mini Pana Cotta mit saisonalen Früchten  "},{"$f":"'Sandwiches & Apéro'!B32","v":"pro Person"},{"$f":"'Sandwiches & Apéro'!C32","v":"CHF"},{"$f":"'Sandwiches & Apéro'!D32","v":36},{"$f":"'Sandwiches & Apéro'!E32","v":0},{"$f":"'Sandwiches & Apéro'!F32","v":0},{"$f":"'Sandwiches & Apéro'!G32","v":"CHF"},{"$f":"'Sandwiches & Apéro'!H32","v":0}]
[{"$f":"'Sandwiches & Apéro'!A33","v":"Sandwiches\nSandwiches ab 5 Personen bestellbar\n"},{"$f":"'Sandwiches & Apéro'!B33","v":0},{"$f":"'Sandwiches & Apéro'!C33","v":0},{"$f":"'Sandwiches & Apéro'!D33","v":0},{"$f":"'Sandwiches & Apéro'!E33","v":0},{"$f":"'Sandwiches & Apéro'!F33","v":0},{"$f":"'Sandwiches & Apéro'!G33","v":0},{"$f":"'Sandwiches & Apéro'!H33","v":0}]
[{"$f":"'Sandwiches & Apéro'!A34","v":"Focaccia  \t\ngefüllt mit Falafel und Hummuu, garniert mit reichlich Salat\n"},{"$f":"'Sandwiches & Apéro'!B34","v":"pro Stück"},{"$f":"'Sandwiches & Apéro'!C34","v":"CHF"},{"$f":"'Sandwiches & Apéro'!D34","v":7.5},{"$f":"'Sandwiches & Apéro'!E34","v":0},{"$f":"'Sandwiches & Apéro'!F34","v":0},{"$f":"'Sandwiches & Apéro'!G34","v":"CHF"},{"$f":"'Sandwiches & Apéro'!H34","v":0}]
[{"$f":"'Sandwiches & Apéro'!A35","v":"Focaccia  \t\ngefüllt mit Roastbeef, Frischkäse, Salat, Tomaten, Gurken und Radieschen\n"},{"$f":"'Sandwiches & Apéro'!B35","v":"pro Stück"},{"$f":"'Sandwiches & Apéro'!C35","v":"CHF"},{"$f":"'Sandwiches & Apéro'!D35","v":12.5},{"$f":"'Sandwiches & Apéro'!E35","v":0},{"$f":"'Sandwiches & Apéro'!F35","v":0},{"$f":"'Sandwiches & Apéro'!G35","v":"CHF"},{"$f":"'Sandwiches & Apéro'!H35","v":0}]
[{"$f":"'Sandwiches & Apéro'!A36","v":"Focaccia  \t\ngefüllt mit Pouletstreifen, Currysauce, Salat und Tomaten \n"},{"$f":"'Sandwiches & Apéro'!B36","v":"pro Stück"},{"$f":"'Sandwiches & Apéro'!C36","v":"CHF"},{"$f":"'Sandwiches & Apéro'!D36","v":12.5},{"$f":"'Sandwiches & Apéro'!E36","v":0},{"$f":"'Sandwiches & Apéro'!F36","v":0},{"$f":"'Sandwiches & Apéro'!G36","v":"CHF"},{"$f":"'Sandwiches & Apéro'!H36","v":0}]
[{"$f":"'Sandwiches & Apéro'!A37","v":"Focaccia  \t\ngefüllt mit Tomaten, Mozzarella, Frischkäse und Basilikum"},{"$f":"'Sandwiches & Apéro'!B37","v":"pro Stück"},{"$f":"'Sandwiches & Apéro'!C37","v":"CHF"},{"$f":"'Sandwiches & Apéro'!D37","v":12.5},{"$f":"'Sandwiches & Apéro'!E37","v":0},{"$f":"'Sandwiches & Apéro'!F37","v":0},{"$f":"'Sandwiches & Apéro'!G37","v":"CHF"},{"$f":"'Sandwiches & Apéro'!H37","v":0}]
[{"$f":"'Sandwiches & Apéro'!A38","v":"Wraps\nWraps ab 5 Personen bestellbar"},{"$f":"'Sandwiches & Apéro'!B38","v":0},{"$f":"'Sandwiches & Apéro'!C38","v":0},{"$f":"'Sandwiches & Apéro'!D38","v":0},{"$f":"'Sandwiches & Apéro'!E38","v":0},{"$f":"'Sandwiches & Apéro'!F38","v":0},{"$f":"'Sandwiches & Apéro'!G38","v":0},{"$f":"'Sandwiches & Apéro'!H38","v":0}]
[{"$f":"'Sandwiches & Apéro'!A39","v":"Wrap Swiss Style\ngefüllt mit Vorderschinken und Emmentaler"},{"$f":"'Sandwiches & Apéro'!B39","v":"pro Stück"},{"$f":"'Sandwiches & Apéro'!C39","v":"CHF"},{"$f":"'Sandwiches & Apéro'!D39","v":7.5},{"$f":"'Sandwiches & Apéro'!E39","v":0},{"$f":"'Sandwiches & Apéro'!F39","v":0},{"$f":"'Sandwiches & Apéro'!G39","v":"CHF"},{"$f":"'Sandwiches & Apéro'!H39","v":0}]
[{"$f":"'Sandwiches & Apéro'!A40","v":"Wrap Italy Style\ngefüllt mit Rucola, Parmesan, Pinienkernen,\nRohschinken und getrockneten Tomaten"},{"$f":"'Sandwiches & Apéro'!B40","v":"pro Stück"},{"$f":"'Sandwiches & Apéro'!C40","v":"CHF"},{"$f":"'Sandwiches & Apéro'!D40","v":13},{"$f":"'Sandwiches & Apéro'!E40","v":0},{"$f":"'Sandwiches & Apéro'!F40","v":0},{"$f":"'Sandwiches & Apéro'!G40","v":"CHF"},{"$f":"'Sandwiches & Apéro'!H40","v":0}]
[{"$f":"'Sandwiches & Apéro'!A41","v":"Wrap Moroccan Style\ngefüllt mit Bulgur, Hummus, Aubergine, Granatapfelkernen \nund Salat"},{"$f":"'Sandwiches & Apéro'!B41","v":"pro Stück"},{"$f":"'Sandwiches & Apéro'!C41","v":"CHF"},{"$f":"'Sandwiches & Apéro'!D41","v":7.5},{"$f":"'Sandwiches & Apéro'!E41","v":0},{"$f":"'Sandwiches & Apéro'!F41","v":0},{"$f":"'Sandwiches & Apéro'!G41","v":"CHF"},{"$f":"'Sandwiches & Apéro'!H41","v":0}]
[{"$f":"'Sandwiches & Apéro'!A42","v":"Wrap Antipasti\ngefüllt mit Antipastigemüse und Rucola"},{"$f":"'Sandwiches & Apéro'!B42","v":"pro Stück"},{"$f":"'Sandwiches & Apéro'!C42","v":"CHF"},{"$f":"'Sandwiches & Apéro'!D42","v":7.5},{"$f":"'Sandwiches & Apéro'!E42","v":0},{"$f":"'Sandwiches & Apéro'!F42","v":0},{"$f":"'Sandwiches & Apéro'!G42","v":"CHF"},{"$f":"'Sandwiches & Apéro'!H42","v":0}]
[{"$f":"'Sandwiches & Apéro'!A43","v":"Mini Wrap\ngefüllt mit Philadelphia, Rucola, Zuchetti, Radieschen und Karotten\n"},{"$f":"'Sandwiches & Apéro'!B43","v":"pro Stück"},{"$f":"'Sandwiches & Apéro'!C43","v":"CHF"},{"$f":"'Sandwiches & Apéro'!D43","v":2.5},{"$f":"'Sandwiches & Apéro'!E43","v":0},{"$f":"'Sandwiches & Apéro'!F43","v":0},{"$f":"'Sandwiches & Apéro'!G43","v":"CHF"},{"$f":"'Sandwiches & Apéro'!H43","v":0}]
[{"$f":"'Sandwiches & Apéro'!A44","v":"Mini Wrap\ngefüllt mit Rauchlachs, Meerrettich, Salat, Zwiebeln und Gurken\n"},{"$f":"'Sandwiches & Apéro'!B44","v":"pro Stück"},{"$f":"'Sandwiches & Apéro'!C44","v":"CHF"},{"$f":"'Sandwiches & Apéro'!D44","v":3},{"$f":"'Sandwiches & Apéro'!E44","v":0},{"$f":"'Sandwiches & Apéro'!F44","v":0},{"$f":"'Sandwiches & Apéro'!G44","v":"CHF"},{"$f":"'Sandwiches & Apéro'!H44","v":0}]
[{"$f":"'Sandwiches & Apéro'!A45","v":"Mini Wrap\ngefüllt mit Roastbeef, Salat, Zwiebeln, Peperoni und Senf-Mayonaise"},{"$f":"'Sandwiches & Apéro'!B45","v":"pro Stück"},{"$f":"'Sandwiches & Apéro'!C45","v":"CHF"},{"$f":"'Sandwiches & Apéro'!D45","v":3.5},{"$f":"'Sandwiches & Apéro'!E45","v":0},{"$f":"'Sandwiches & Apéro'!F45","v":0},{"$f":"'Sandwiches & Apéro'!G45","v":"CHF"},{"$f":"'Sandwiches & Apéro'!H45","v":0}]
[{"$f":"'Sandwiches & Apéro'!A46","v":"Kalte Häppchen\nKalte Häppchen ab 10 Personen bestellbar"},{"$f":"'Sandwiches & Apéro'!B46","v":0},{"$f":"'Sandwiches & Apéro'!C46","v":0},{"$f":"'Sandwiches & Apéro'!D46","v":0},{"$f":"'Sandwiches & Apéro'!E46","v":0},{"$f":"'Sandwiches & Apéro'!F46","v":0},{"$f":"'Sandwiches & Apéro'!G46","v":0},{"$f":"'Sandwiches & Apéro'!H46","v":0}]
[{"$f":"'Sandwiches & Apéro'!A47","v":"Rohe Gemüsesticks mit Dip Sauce"},{"$f":"'Sandwiches & Apéro'!B47","v":"pro Person"},{"$f":"'Sandwiches & Apéro'!C47","v":"CHF"},{"$f":"'Sandwiches & Apéro'!D47","v":2.5},{"$f":"'Sandwiches & Apéro'!E47","v":0},{"$f":"'Sandwiches & Apéro'!F47","v":0},{"$f":"'Sandwiches & Apéro'!G47","v":"CHF"},{"$f":"'Sandwiches & Apéro'!H47","v":0}]
[{"$f":"'Sandwiches & Apéro'!A48","v":"Bruschetta mit frischen Tomaten und Zwiebel"},{"$f":"'Sandwiches & Apéro'!B48","v":"pro Stück"},{"$f":"'Sandwiches & Apéro'!C48","v":"CHF"},{"$f":"'Sandwiches & Apéro'!D48","v":3.2},{"$f":"'Sandwiches & Apéro'!E48","v":0},{"$f":"'Sandwiches & Apéro'!F48","v":0},{"$f":"'Sandwiches & Apéro'!G48","v":"CHF"},{"$f":"'Sandwiches & Apéro'!H48","v":0}]
[{"$f":"'Sandwiches & Apéro'!A49","v":"Rauchlachs auf gerösteter Toastbrotscheibe"},{"$f":"'Sandwiches & Apéro'!B49","v":"pro Stück"},{"$f":"'Sandwiches & Apéro'!C49","v":"CHF"},{"$f":"'Sandwiches & Apéro'!D49","v":4},{"$f":"'Sandwiches & Apéro'!E49","v":0},{"$f":"'Sandwiches & Apéro'!F49","v":0},{"$f":"'Sandwiches & Apéro'!G49","v":"CHF"},{"$f":"'Sandwiches & Apéro'!H49","v":0}]
[{"$f":"'Sandwiches & Apéro'!A50","v":"Crevetten Cocktail im Glas"},{"$f":"'Sandwiches & Apéro'!B50","v":"pro Stück"},{"$f":"'Sandwiches & Apéro'!C50","v":"CHF"},{"$f":"'Sandwiches & Apéro'!D50","v":4.2},{"$f":"'Sandwiches & Apéro'!E50","v":0},{"$f":"'Sandwiches & Apéro'!F50","v":0},{"$f":"'Sandwiches & Apéro'!G50","v":"CHF"},{"$f":"'Sandwiches & Apéro'!H50","v":0}]
[{"$f":"'Sandwiches & Apéro'!A51","v":"Asiatischer Gurkensalat im Glas"},{"$f":"'Sandwiches & Apéro'!B51","v":"pro Stück"},{"$f":"'Sandwiches & Apéro'!C51","v":"CHF"},{"$f":"'Sandwiches & Apéro'!D51","v":3.5},{"$f":"'Sandwiches & Apéro'!E51","v":0},{"$f":"'Sandwiches & Apéro'!F51","v":0},{"$f":"'Sandwiches & Apéro'!G51","v":"CHF"},{"$f":"'Sandwiches & Apéro'!H51","v":0}]
[{"$f":"'Sandwiches & Apéro'!A52","v":"Zucchini-Röllchen gefüllt mit Frischkäse"},{"$f":"'Sandwiches & Apéro'!B52","v":"pro Person"},{"$f":"'Sandwiches & Apéro'!C52","v":"CHF"},{"$f":"'Sandwiches & Apéro'!D52","v":3.5},{"$f":"'Sandwiches & Apéro'!E52","v":0},{"$f":"'Sandwiches & Apéro'!F52","v":0},{"$f":"'Sandwiches & Apéro'!G52","v":"CHF"},{"$f":"'Sandwiches & Apéro'!H52","v":0}]
[{"$f":"'Sandwiches & Apéro'!A53","v":"Grisini mit Rohschinken"},{"$f":"'Sandwiches & Apéro'!B53","v":"pro Stück"},{"$f":"'Sandwiches & Apéro'!C53","v":"CHF"},{"$f":"'Sandwiches & Apéro'!D53","v":2.5},{"$f":"'Sandwiches & Apéro'!E53","v":0},{"$f":"'Sandwiches & Apéro'!F53","v":0},{"$f":"'Sandwiches & Apéro'!G53","v":"CHF"},{"$f":"'Sandwiches & Apéro'!H53","v":0}]
[{"$f":"'Sandwiches & Apéro'!A54","v":"Roastbeef Röllchen mit Frischkäse"},{"$f":"'Sandwiches & Apéro'!B54","v":"pro Stück"},{"$f":"'Sandwiches & Apéro'!C54","v":"CHF"},{"$f":"'Sandwiches & Apéro'!D54","v":4.5},{"$f":"'Sandwiches & Apéro'!E54","v":0},{"$f":"'Sandwiches & Apéro'!F54","v":0},{"$f":"'Sandwiches & Apéro'!G54","v":"CHF"},{"$f":"'Sandwiches & Apéro'!H54","v":0}]
[{"$f":"'Sandwiches & Apéro'!A55","v":"Mini Pastetchen mit Rauchlachstartar"},{"$f":"'Sandwiches & Apéro'!B55","v":"pro Stück"},{"$f":"'Sandwiches & Apéro'!C55","v":"CHF"},{"$f":"'Sandwiches & Apéro'!D55","v":2.5},{"$f":"'Sandwiches & Apéro'!E55","v":0},{"$f":"'Sandwiches & Apéro'!F55","v":0},{"$f":"'Sandwiches & Apéro'!G55","v":"CHF"},{"$f":"'Sandwiches & Apéro'!H55","v":0}]
[{"$f":"'Sandwiches & Apéro'!A56","v":"Mini Pastetchen mit Frischkäsefüllung"},{"$f":"'Sandwiches & Apéro'!B56","v":"pro Stück"},{"$f":"'Sandwiches & Apéro'!C56","v":"CHF"},{"$f":"'Sandwiches & Apéro'!D56","v":2.5},{"$f":"'Sandwiches & Apéro'!E56","v":0},{"$f":"'Sandwiches & Apéro'!F56","v":0},{"$f":"'Sandwiches & Apéro'!G56","v":"CHF"},{"$f":"'Sandwiches & Apéro'!H56","v":0}]
[{"$f":"'Sandwiches & Apéro'!A57","v":"Mini Pastetchen mit Thonmousse"},{"$f":"'Sandwiches & Apéro'!B57","v":"pro Stück"},{"$f":"'Sandwiches & Apéro'!C57","v":"CHF"},{"$f":"'Sandwiches & Apéro'!D57","v":2.5},{"$f":"'Sandwiches & Apéro'!E57","v":0},{"$f":"'Sandwiches & Apéro'!F57","v":0},{"$f":"'Sandwiches & Apéro'!G57","v":"CHF"},{"$f":"'Sandwiches & Apéro'!H57","v":0}]
[{"$f":"'Sandwiches & Apéro'!A58","v":"Mini Pita Brot mit Hummus"},{"$f":"'Sandwiches & Apéro'!B58","v":"pro Stück"},{"$f":"'Sandwiches & Apéro'!C58","v":"CHF"},{"$f":"'Sandwiches & Apéro'!D58","v":3.2},{"$f":"'Sandwiches & Apéro'!E58","v":0},{"$f":"'Sandwiches & Apéro'!F58","v":0},{"$f":"'Sandwiches & Apéro'!G58","v":"CHF"},{"$f":"'Sandwiches & Apéro'!H58","v":0}]
[{"$f":"'Sandwiches & Apéro'!A59","v":"Spiessli"},{"$f":"'Sandwiches & Apéro'!B59","v":0},{"$f":"'Sandwiches & Apéro'!C59","v":0},{"$f":"'Sandwiches & Apéro'!D59","v":0},{"$f":"'Sandwiches & Apéro'!E59","v":0},{"$f":"'Sandwiches & Apéro'!F59","v":0},{"$f":"'Sandwiches & Apéro'!G59","v":0},{"$f":"'Sandwiches & Apéro'!H59","v":0}]
[{"$f":"'Sandwiches & Apéro'!A60","v":"Tomaten-Mozzarella "},{"$f":"'Sandwiches & Apéro'!B60","v":"pro Stück"},{"$f":"'Sandwiches & Apéro'!C60","v":"CHF"},{"$f":"'Sandwiches & Apéro'!D60","v":4},{"$f":"'Sandwiches & Apéro'!E60","v":0},{"$f":"'Sandwiches & Apéro'!F60","v":0},{"$f":"'Sandwiches & Apéro'!G60","v":"CHF"},{"$f":"'Sandwiches & Apéro'!H60","v":0}]
[{"$f":"'Sandwiches & Apéro'!A61","v":"Saisonale Früchte  "},{"$f":"'Sandwiches & Apéro'!B61","v":"pro Stück"},{"$f":"'Sandwiches & Apéro'!C61","v":"CHF"},{"$f":"'Sandwiches & Apéro'!D61","v":3.5},{"$f":"'Sandwiches & Apéro'!E61","v":0},{"$f":"'Sandwiches & Apéro'!F61","v":0},{"$f":"'Sandwiches & Apéro'!G61","v":"CHF"},{"$f":"'Sandwiches & Apéro'!H61","v":0}]
[{"$f":"'Sandwiches & Apéro'!A62","v":"Antipasti "},{"$f":"'Sandwiches & Apéro'!B62","v":"pro Stück"},{"$f":"'Sandwiches & Apéro'!C62","v":"CHF"},{"$f":"'Sandwiches & Apéro'!D62","v":6.5},{"$f":"'Sandwiches & Apéro'!E62","v":0},{"$f":"'Sandwiches & Apéro'!F62","v":0},{"$f":"'Sandwiches & Apéro'!G62","v":"CHF"},{"$f":"'Sandwiches & Apéro'!H62","v":0}]
[{"$f":"'Sandwiches & Apéro'!A63","v":"Melone-Rohschinken  "},{"$f":"'Sandwiches & Apéro'!B63","v":"pro Stück"},{"$f":"'Sandwiches & Apéro'!C63","v":"CHF"},{"$f":"'Sandwiches & Apéro'!D63","v":3.5},{"$f":"'Sandwiches & Apéro'!E63","v":0},{"$f":"'Sandwiches & Apéro'!F63","v":0},{"$f":"'Sandwiches & Apéro'!G63","v":"CHF"},{"$f":"'Sandwiches & Apéro'!H63","v":0}]
[{"$f":"'Sandwiches & Apéro'!A64","v":"Platten\nApéro Platten ab 5 Personen bestellbar"},{"$f":"'Sandwiches & Apéro'!B64","v":0},{"$f":"'Sandwiches & Apéro'!C64","v":0},{"$f":"'Sandwiches & Apéro'!D64","v":0},{"$f":"'Sandwiches & Apéro'!E64","v":0},{"$f":"'Sandwiches & Apéro'!F64","v":0},{"$f":"'Sandwiches & Apéro'!G64","v":0},{"$f":"'Sandwiches & Apéro'!H64","v":0}]
[{"$f":"'Sandwiches & Apéro'!A65","v":"Käse Platte    \n(100g Käse pro Person)\nVerschiedene Sorten an Hart- und Weichkäse\ngarniert mit Trauben und Walnüssen\ndazu servieren wir Ihnen frisches Nussbrot"},{"$f":"'Sandwiches & Apéro'!B65","v":"pro Person"},{"$f":"'Sandwiches & Apéro'!C65","v":"CHF"},{"$f":"'Sandwiches & Apéro'!D65","v":14},{"$f":"'Sandwiches & Apéro'!E65","v":0},{"$f":"'Sandwiches & Apéro'!F65","v":0},{"$f":"'Sandwiches & Apéro'!G65","v":"CHF"},{"$f":"'Sandwiches & Apéro'!H65","v":0}]
[{"$f":"'Sandwiches & Apéro'!A66","v":"Fleisch Platte \n(100g Fleisch pro Person)\nTrockenfleisch, Rohschinken, Speck, Salami, Aufschnitt\ngarniert mit Essiggurken, Silberzwiebeln und Tomaten\ndazu servieren wir Ihnen frisches Brot\n"},{"$f":"'Sandwiches & Apéro'!B66","v":"pro Person"},{"$f":"'Sandwiches & Apéro'!C66","v":"CHF"},{"$f":"'Sandwiches & Apéro'!D66","v":16},{"$f":"'Sandwiches & Apéro'!E66","v":0},{"$f":"'Sandwiches & Apéro'!F66","v":0},{"$f":"'Sandwiches & Apéro'!G66","v":"CHF"},{"$f":"'Sandwiches & Apéro'!H66","v":0}]
[{"$f":"'Sandwiches & Apéro'!A67","v":"Vegane Platte     \nPita Brot mit Hummus, Edamame, Oliven, Dörrtomaten und Falafel"},{"$f":"'Sandwiches & Apéro'!B67","v":"pro Person"},{"$f":"'Sandwiches & Apéro'!C67","v":"CHF"},{"$f":"'Sandwiches & Apéro'!D67","v":12.5},{"$f":"'Sandwiches & Apéro'!E67","v":0},{"$f":"'Sandwiches & Apéro'!F67","v":0},{"$f":"'Sandwiches & Apéro'!G67","v":"CHF"},{"$f":"'Sandwiches & Apéro'!H67","v":0}]
[{"$f":"'Sandwiches & Apéro'!A68","v":"Mediterane Platte \n(100g pro Person)\nMariniertes, gegrilltes Gemüse, \ngefüllte Peperoni, Oliven, Feta oder Parmesan\ndazu servieren wir Ihnen ofenfrisches Focacciabrot"},{"$f":"'Sandwiches & Apéro'!B68","v":"pro Person"},{"$f":"'Sandwiches & Apéro'!C68","v":"CHF"},{"$f":"'Sandwiches & Apéro'!D68","v":29.5},{"$f":"'Sandwiches & Apéro'!E68","v":0},{"$f":"'Sandwiches & Apéro'!F68","v":0},{"$f":"'Sandwiches & Apéro'!G68","v":"CHF"},{"$f":"'Sandwiches & Apéro'!H68","v":0}]
[{"$f":"'Sandwiches & Apéro'!A69","v":"Mezze Platte \nPita Brot mit Baba Ganoush, Hummus, Poulet Spiesse, \nglasierte Pilze, Feta Spinat Salat, Tabbuleh und \nDatteln im Speckmantel"},{"$f":"'Sandwiches & Apéro'!B69","v":"pro Person"},{"$f":"'Sandwiches & Apéro'!C69","v":"CHF"},{"$f":"'Sandwiches & Apéro'!D69","v":23},{"$f":"'Sandwiches & Apéro'!E69","v":0},{"$f":"'Sandwiches & Apéro'!F69","v":0},{"$f":"'Sandwiches & Apéro'!G69","v":"CHF"},{"$f":"'Sandwiches & Apéro'!H69","v":0}]
[{"$f":"'Sandwiches & Apéro'!A70","v":"Warme Häppchen\nWarme Häppchen ab 10 Personen bestellbar "},{"$f":"'Sandwiches & Apéro'!B70","v":0},{"$f":"'Sandwiches & Apéro'!C70","v":0},{"$f":"'Sandwiches & Apéro'!D70","v":0},{"$f":"'Sandwiches & Apéro'!E70","v":0},{"$f":"'Sandwiches & Apéro'!F70","v":0},{"$f":"'Sandwiches & Apéro'!G70","v":0},{"$f":"'Sandwiches & Apéro'!H70","v":0}]
[{"$f":"'Sandwiches & Apéro'!A71","v":"Gemüse-Frühlingsrolle"},{"$f":"'Sandwiches & Apéro'!B71","v":"pro Person"},{"$f":"'Sandwiches & Apéro'!C71","v":"CHF"},{"$f":"'Sandwiches & Apéro'!D71","v":5.2},{"$f":"'Sandwiches & Apéro'!E71","v":0},{"$f":"'Sandwiches & Apéro'!F71","v":0},{"$f":"'Sandwiches & Apéro'!G71","v":"CHF"},{"$f":"'Sandwiches & Apéro'!H71","v":0}]
[{"$f":"'Sandwiches & Apéro'!A72","v":"Chäschüechli"},{"$f":"'Sandwiches & Apéro'!B72","v":"pro Stück"},{"$f":"'Sandwiches & Apéro'!C72","v":"CHF"},{"$f":"'Sandwiches & Apéro'!D72","v":3.5},{"$f":"'Sandwiches & Apéro'!E72","v":0},{"$f":"'Sandwiches & Apéro'!F72","v":0},{"$f":"'Sandwiches & Apéro'!G72","v":"CHF"},{"$f":"'Sandwiches & Apéro'!H72","v":0}]
[{"$f":"'Sandwiches & Apéro'!A73","v":"Poulet-Satay Spiessli"},{"$f":"'Sandwiches & Apéro'!B73","v":"pro Stück"},{"$f":"'Sandwiches & Apéro'!C73","v":"CHF"},{"$f":"'Sandwiches & Apéro'!D73","v":4.2},{"$f":"'Sandwiches & Apéro'!E73","v":0},{"$f":"'Sandwiches & Apéro'!F73","v":0},{"$f":"'Sandwiches & Apéro'!G73","v":"CHF"},{"$f":"'Sandwiches & Apéro'!H73","v":0}]
[{"$f":"'Sandwiches & Apéro'!A74","v":"Hackbällchen in Tomatensauce, serviert im Glas"},{"$f":"'Sandwiches & Apéro'!B74","v":"pro Person"},{"$f":"'Sandwiches & Apéro'!C74","v":"CHF"},{"$f":"'Sandwiches & Apéro'!D74","v":6.5},{"$f":"'Sandwiches & Apéro'!E74","v":0},{"$f":"'Sandwiches & Apéro'!F74","v":0},{"$f":"'Sandwiches & Apéro'!G74","v":"CHF"},{"$f":"'Sandwiches & Apéro'!H74","v":0}]
[{"$f":"'Sandwiches & Apéro'!A75","v":"Schinkengipfel"},{"$f":"'Sandwiches & Apéro'!B75","v":"pro Stück"},{"$f":"'Sandwiches & Apéro'!C75","v":"CHF"},{"$f":"'Sandwiches & Apéro'!D75","v":3.5},{"$f":"'Sandwiches & Apéro'!E75","v":0},{"$f":"'Sandwiches & Apéro'!F75","v":0},{"$f":"'Sandwiches & Apéro'!G75","v":"CHF"},{"$f":"'Sandwiches & Apéro'!H75","v":0}]
[{"$f":"'Sandwiches & Apéro'!A76","v":"Fisch-Knusperli mit Sauce Tartar"},{"$f":"'Sandwiches & Apéro'!B76","v":"pro Person"},{"$f":"'Sandwiches & Apéro'!C76","v":"CHF"},{"$f":"'Sandwiches & Apéro'!D76","v":10.5},{"$f":"'Sandwiches & Apéro'!E76","v":0},{"$f":"'Sandwiches & Apéro'!F76","v":0},{"$f":"'Sandwiches & Apéro'!G76","v":"CHF"},{"$f":"'Sandwiches & Apéro'!H76","v":0}]
[{"$f":"'Sandwiches & Apéro'!A77","v":"Gemüsestrudel"},{"$f":"'Sandwiches & Apéro'!B77","v":"pro Person"},{"$f":"'Sandwiches & Apéro'!C77","v":"CHF"},{"$f":"'Sandwiches & Apéro'!D77","v":6.5},{"$f":"'Sandwiches & Apéro'!E77","v":0},{"$f":"'Sandwiches & Apéro'!F77","v":0},{"$f":"'Sandwiches & Apéro'!G77","v":"CHF"},{"$f":"'Sandwiches & Apéro'!H77","v":0}]
[{"$f":"'Sandwiches & Apéro'!A78","v":"Chicken Nuggets mit Dip Sauce"},{"$f":"'Sandwiches & Apéro'!B78","v":"pro Person"},{"$f":"'Sandwiches & Apéro'!C78","v":"CHF"},{"$f":"'Sandwiches & Apéro'!D78","v":8.5},{"$f":"'Sandwiches & Apéro'!E78","v":0},{"$f":"'Sandwiches & Apéro'!F78","v":0},{"$f":"'Sandwiches & Apéro'!G78","v":"CHF"},{"$f":"'Sandwiches & Apéro'!H78","v":0}]
[{"$f":"'Sandwiches & Apéro'!A79","v":"Mini Hot Dog"},{"$f":"'Sandwiches & Apéro'!B79","v":"pro Stück"},{"$f":"'Sandwiches & Apéro'!C79","v":"CHF"},{"$f":"'Sandwiches & Apéro'!D79","v":2.5},{"$f":"'Sandwiches & Apéro'!E79","v":0},{"$f":"'Sandwiches & Apéro'!F79","v":0},{"$f":"'Sandwiches & Apéro'!G79","v":"CHF"},{"$f":"'Sandwiches & Apéro'!H79","v":0}]
[{"$f":"'Sandwiches & Apéro'!A80","v":"Samosas"},{"$f":"'Sandwiches & Apéro'!B80","v":"pro Stück"},{"$f":"'Sandwiches & Apéro'!C80","v":"CHF"},{"$f":"'Sandwiches & Apéro'!D80","v":4.5},{"$f":"'Sandwiches & Apéro'!E80","v":0},{"$f":"'Sandwiches & Apéro'!F80","v":0},{"$f":"'Sandwiches & Apéro'!G80","v":"CHF"},{"$f":"'Sandwiches & Apéro'!H80","v":0}]
[{"$f":"'Sandwiches & Apéro'!A81","v":"Hot Jalapenos mit Sauerrahm Dip"},{"$f":"'Sandwiches & Apéro'!B81","v":"pro Stück"},{"$f":"'Sandwiches & Apéro'!C81","v":"CHF"},{"$f":"'Sandwiches & Apéro'!D81","v":3},{"$f":"'Sandwiches & Apéro'!E81","v":0},{"$f":"'Sandwiches & Apéro'!F81","v":0},{"$f":"'Sandwiches & Apéro'!G81","v":"CHF"},{"$f":"'Sandwiches & Apéro'!H81","v":0}]
[{"$f":"'Sandwiches & Apéro'!A82","v":"Patatas Bravas "},{"$f":"'Sandwiches & Apéro'!B82","v":"pro Person"},{"$f":"'Sandwiches & Apéro'!C82","v":"CHF"},{"$f":"'Sandwiches & Apéro'!D82","v":5.3},{"$f":"'Sandwiches & Apéro'!E82","v":0},{"$f":"'Sandwiches & Apéro'!F82","v":0},{"$f":"'Sandwiches & Apéro'!G82","v":"CHF"},{"$f":"'Sandwiches & Apéro'!H82","v":0}]
[{"$f":"'Sandwiches & Apéro'!A83","v":"Datteln im Speckmantel"},{"$f":"'Sandwiches & Apéro'!B83","v":"pro Stück"},{"$f":"'Sandwiches & Apéro'!C83","v":"CHF "},{"$f":"'Sandwiches & Apéro'!D83","v":2},{"$f":"'Sandwiches & Apéro'!E83","v":0},{"$f":"'Sandwiches & Apéro'!F83","v":0},{"$f":"'Sandwiches & Apéro'!G83","v":"CHF"},{"$f":"'Sandwiches & Apéro'!H83","v":0}]
[{"$f":"'Sandwiches & Apéro'!A84","v":"Tortilla de Patatas"},{"$f":"'Sandwiches & Apéro'!B84","v":"pro Person"},{"$f":"'Sandwiches & Apéro'!C84","v":"CHF"},{"$f":"'Sandwiches & Apéro'!D84","v":6.2},{"$f":"'Sandwiches & Apéro'!E84","v":0},{"$f":"'Sandwiches & Apéro'!F84","v":0},{"$f":"'Sandwiches & Apéro'!G84","v":"CHF"},{"$f":"'Sandwiches & Apéro'!H84","v":0}]
[{"$f":"'Sandwiches & Apéro'!A85","v":"Schnitzelbrot mit Tartarsauce (Poulet)"},{"$f":"'Sandwiches & Apéro'!B85","v":"pro Stück"},{"$f":"'Sandwiches & Apéro'!C85","v":"CHF"},{"$f":"'Sandwiches & Apéro'!D85","v":7.5},{"$f":"'Sandwiches & Apéro'!E85","v":0},{"$f":"'Sandwiches & Apéro'!F85","v":0},{"$f":"'Sandwiches & Apéro'!G85","v":"CHF"},{"$f":"'Sandwiches & Apéro'!H85","v":0}]
[{"$f":"'Sandwiches & Apéro'!A86","v":"Elsässer Flammkuchen\n(ausreichend für ca. 6 Personen)"},{"$f":"'Sandwiches & Apéro'!B86","v":"pro Stück"},{"$f":"'Sandwiches & Apéro'!C86","v":"CHF"},{"$f":"'Sandwiches & Apéro'!D86","v":13.5},{"$f":"'Sandwiches & Apéro'!E86","v":0},{"$f":"'Sandwiches & Apéro'!F86","v":0},{"$f":"'Sandwiches & Apéro'!G86","v":"CHF"},{"$f":"'Sandwiches & Apéro'!H86","v":0}]
[{"$f":"'Sandwiches & Apéro'!A87","v":"Hausgemachte Gemüse Quiche \n(ausreichend für ca. 6 Personen)"},{"$f":"'Sandwiches & Apéro'!B87","v":"pro Stück"},{"$f":"'Sandwiches & Apéro'!C87","v":"CHF"},{"$f":"'Sandwiches & Apéro'!D87","v":6.5},{"$f":"'Sandwiches & Apéro'!E87","v":0},{"$f":"'Sandwiches & Apéro'!F87","v":0},{"$f":"'Sandwiches & Apéro'!G87","v":"CHF"},{"$f":"'Sandwiches & Apéro'!H87","v":0}]
[{"$f":"'Sandwiches & Apéro'!A88","v":"Snacks"},{"$f":"'Sandwiches & Apéro'!B88","v":0},{"$f":"'Sandwiches & Apéro'!C88","v":0},{"$f":"'Sandwiches & Apéro'!D88","v":0},{"$f":"'Sandwiches & Apéro'!E88","v":0},{"$f":"'Sandwiches & Apéro'!F88","v":0},{"$f":"'Sandwiches & Apéro'!G88","v":0},{"$f":"'Sandwiches & Apéro'!H88","v":0}]
[{"$f":"'Sandwiches & Apéro'!A89","v":"Kartoffelchips Paprik"},{"$f":"'Sandwiches & Apéro'!B89","v":"pro Person"},{"$f":"'Sandwiches & Apéro'!C89","v":"CHF"},{"$f":"'Sandwiches & Apéro'!D89","v":1.8},{"$f":"'Sandwiches & Apéro'!E89","v":0},{"$f":"'Sandwiches & Apéro'!F89","v":0},{"$f":"'Sandwiches & Apéro'!G89","v":"CHF"},{"$f":"'Sandwiches & Apéro'!H89","v":0}]
[{"$f":"'Sandwiches & Apéro'!A90","v":"Kartoffelchips Salz"},{"$f":"'Sandwiches & Apéro'!B90","v":"pro Person"},{"$f":"'Sandwiches & Apéro'!C90","v":"CHF"},{"$f":"'Sandwiches & Apéro'!D90","v":1.8},{"$f":"'Sandwiches & Apéro'!E90","v":0},{"$f":"'Sandwiches & Apéro'!F90","v":0},{"$f":"'Sandwiches & Apéro'!G90","v":"CHF"},{"$f":"'Sandwiches & Apéro'!H90","v":0}]
[{"$f":"'Sandwiches & Apéro'!A91","v":"Gemüsechips"},{"$f":"'Sandwiches & Apéro'!B91","v":"pro Person"},{"$f":"'Sandwiches & Apéro'!C91","v":"CHF"},{"$f":"'Sandwiches & Apéro'!D91","v":3.5},{"$f":"'Sandwiches & Apéro'!E91","v":0},{"$f":"'Sandwiches & Apéro'!F91","v":0},{"$f":"'Sandwiches & Apéro'!G91","v":"CHF"},{"$f":"'Sandwiches & Apéro'!H91","v":0}]
[{"$f":"'Sandwiches & Apéro'!A92","v":"Salznüssli"},{"$f":"'Sandwiches & Apéro'!B92","v":"pro Person"},{"$f":"'Sandwiches & Apéro'!C92","v":"CHF"},{"$f":"'Sandwiches & Apéro'!D92","v":2.5},{"$f":"'Sandwiches & Apéro'!E92","v":0},{"$f":"'Sandwiches & Apéro'!F92","v":0},{"$f":"'Sandwiches & Apéro'!G92","v":"CHF"},{"$f":"'Sandwiches & Apéro'!H92","v":0}]
[{"$f":"'Sandwiches & Apéro'!A93","v":"Salzstängeli"},{"$f":"'Sandwiches & Apéro'!B93","v":"pro Person"},{"$f":"'Sandwiches & Apéro'!C93","v":"CHF"},{"$f":"'Sandwiches & Apéro'!D93","v":2.5},{"$f":"'Sandwiches & Apéro'!E93","v":0},{"$f":"'Sandwiches & Apéro'!F93","v":0},{"$f":"'Sandwiches & Apéro'!G93","v":"CHF"},{"$f":"'Sandwiches & Apéro'!H93","v":0}]
[{"$f":"'Sandwiches & Apéro'!A94","v":"Nachos mit Guacamole "},{"$f":"'Sandwiches & Apéro'!B94","v":"pro Person"},{"$f":"'Sandwiches & Apéro'!C94","v":"CHF"},{"$f":"'Sandwiches & Apéro'!D94","v":5.5},{"$f":"'Sandwiches & Apéro'!E94","v":0},{"$f":"'Sandwiches & Apéro'!F94","v":0},{"$f":"'Sandwiches & Apéro'!G94","v":"CHF"},{"$f":"'Sandwiches & Apéro'!H94","v":0}]
[{"$f":"'Sandwiches & Apéro'!A95","v":"Nachos mit Salsa Dip "},{"$f":"'Sandwiches & Apéro'!B95","v":"pro Person"},{"$f":"'Sandwiches & Apéro'!C95","v":"CHF"},{"$f":"'Sandwiches & Apéro'!D95","v":5.5},{"$f":"'Sandwiches & Apéro'!E95","v":0},{"$f":"'Sandwiches & Apéro'!F95","v":0},{"$f":"'Sandwiches & Apéro'!G95","v":"CHF"},{"$f":"'Sandwiches & Apéro'!H95","v":0}]
[{"$f":"'Sandwiches & Apéro'!A96","v":"Salzige Blätterteigstangen"},{"$f":"'Sandwiches & Apéro'!B96","v":"pro Person"},{"$f":"'Sandwiches & Apéro'!C96","v":"CHF"},{"$f":"'Sandwiches & Apéro'!D96","v":1.8},{"$f":"'Sandwiches & Apéro'!E96","v":0},{"$f":"'Sandwiches & Apéro'!F96","v":0},{"$f":"'Sandwiches & Apéro'!G96","v":"CHF"},{"$f":"'Sandwiches & Apéro'!H96","v":0}]
[{"$f":"'Sandwiches & Apéro'!A97","v":"Marinierte Oliven "},{"$f":"'Sandwiches & Apéro'!B97","v":"pro Person"},{"$f":"'Sandwiches & Apéro'!C97","v":"CHF"},{"$f":"'Sandwiches & Apéro'!D97","v":4.2},{"$f":"'Sandwiches & Apéro'!E97","v":0},{"$f":"'Sandwiches & Apéro'!F97","v":0},{"$f":"'Sandwiches & Apéro'!G97","v":"CHF"},{"$f":"'Sandwiches & Apéro'!H97","v":0}]
[{"$f":"'Sandwiches & Apéro'!A98","v":"Around the World"},{"$f":"'Sandwiches & Apéro'!B98","v":0},{"$f":"'Sandwiches & Apéro'!C98","v":0},{"$f":"'Sandwiches & Apéro'!D98","v":0},{"$f":"'Sandwiches & Apéro'!E98","v":0},{"$f":"'Sandwiches & Apéro'!F98","v":0},{"$f":"'Sandwiches & Apéro'!G98","v":0},{"$f":"'Sandwiches & Apéro'!H98","v":0}]
[{"$f":"'Sandwiches & Apéro'!A99","v":"Gerne offerieren wir Ihnen ein massgeschneidertes Angebot in dem wir Ihnen Speisen rund um den Globus zusammenstellen. \nGanz nach Ihrem Geschmack stellen wir verschiedene Speisen auch für \nAllergiker oder spezielle Themen-Events zusammen.\t                                                            Lieferbar ab 15 Personen\n\nPreis je nach gewünschten Speisen auf Anfrage"},{"$f":"'Sandwiches & Apéro'!B99","v":0},{"$f":"'Sandwiches & Apéro'!C99","v":0},{"$f":"'Sandwiches & Apéro'!D99","v":0},{"$f":"'Sandwiches & Apéro'!E99","v":0},{"$f":"'Sandwiches & Apéro'!F99","v":0},{"$f":"'Sandwiches & Apéro'!G99","v":0},{"$f":"'Sandwiches & Apéro'!H99","v":0}]
[{"$f":"Lunch!A8","v":"Einfacher Lunch\nSandwich gefüllt mit Schinken, Salami oder Käse\nSaisonale Frucht  \nSchoggiriegel "},{"$f":"Lunch!B8","v":"pro Person"},{"$f":"Lunch!C8","v":"CHF"},{"$f":"Lunch!D8","v":14},{"$f":"Lunch!E8","v":0},{"$f":"Lunch!F8","v":0},{"$f":"Lunch!G8","v":"CHF"},{"$f":"Lunch!H8","v":0}]
[{"$f":"Lunch!A9","v":"Swiss Lunch\nPartybrötli mit Bündnerfleisch oder Schweizer Käse\nHörnlisalat \nKalte Platte (Käse- und Fleisch gemischt) mit Nussbrot\nSaisonaler Fruchtspiess\nLindor Kugel"},{"$f":"Lunch!B9","v":"pro Person"},{"$f":"Lunch!C9","v":"CHF"},{"$f":"Lunch!D9","v":32},{"$f":"Lunch!E9","v":0},{"$f":"Lunch!F9","v":0},{"$f":"Lunch!G9","v":"CHF"},{"$f":"Lunch!H9","v":0}]
[{"$f":"Lunch!A10","v":"Vegi Lunch\nProteinbrötli mit Hüttenkäse, Avocado und Kresse\nMini Wrap mit Frischkäse\nGemischter Salat mit Balsamico Dressing\nMüsliriegel\nJogurt mit saisonalen Früchten   "},{"$f":"Lunch!B10","v":"pro Person"},{"$f":"Lunch!C10","v":"CHF"},{"$f":"Lunch!D10","v":29},{"$f":"Lunch!E10","v":0},{"$f":"Lunch!F10","v":0},{"$f":"Lunch!G10","v":"CHF"},{"$f":"Lunch!H10","v":0}]
[{"$f":"Lunch!A11","v":"Salat im Glas"},{"$f":"Lunch!B11","v":0},{"$f":"Lunch!C11","v":0},{"$f":"Lunch!D11","v":0},{"$f":"Lunch!E11","v":0},{"$f":"Lunch!F11","v":0},{"$f":"Lunch!G11","v":0},{"$f":"Lunch!H11","v":0}]
[{"$f":"Lunch!A12","v":"Gemischter Saisonsalat mit Kernen & Nüssen  "},{"$f":"Lunch!B12","v":"pro Stück"},{"$f":"Lunch!C12","v":"CHF"},{"$f":"Lunch!D12","v":2.6},{"$f":"Lunch!E12","v":0},{"$f":"Lunch!F12","v":0},{"$f":"Lunch!G12","v":"CHF"},{"$f":"Lunch!H12","v":0}]
[{"$f":"Lunch!A13","v":"Griechischer Salat"},{"$f":"Lunch!B13","v":"pro Stück"},{"$f":"Lunch!C13","v":"CHF"},{"$f":"Lunch!D13","v":2.8},{"$f":"Lunch!E13","v":0},{"$f":"Lunch!F13","v":0},{"$f":"Lunch!G13","v":"CHF"},{"$f":"Lunch!H13","v":0}]
[{"$f":"Lunch!A14","v":"Quinoa Salat mit Feta und Avocado "},{"$f":"Lunch!B14","v":"pro Stück"},{"$f":"Lunch!C14","v":"CHF"},{"$f":"Lunch!D14","v":3.5},{"$f":"Lunch!E14","v":0},{"$f":"Lunch!F14","v":0},{"$f":"Lunch!G14","v":"CHF"},{"$f":"Lunch!H14","v":0}]
[{"$f":"Lunch!A15","v":"Linsensalat mit Rauchlachs "},{"$f":"Lunch!B15","v":"pro Stück"},{"$f":"Lunch!C15","v":"CHF"},{"$f":"Lunch!D15","v":3},{"$f":"Lunch!E15","v":0},{"$f":"Lunch!F15","v":0},{"$f":"Lunch!G15","v":"CHF"},{"$f":"Lunch!H15","v":0}]
[{"$f":"Lunch!A16","v":"Waldorf Salat"},{"$f":"Lunch!B16","v":"pro Stück"},{"$f":"Lunch!C16","v":"CHF"},{"$f":"Lunch!D16","v":3},{"$f":"Lunch!E16","v":0},{"$f":"Lunch!F16","v":0},{"$f":"Lunch!G16","v":"CHF"},{"$f":"Lunch!H16","v":0}]
[{"$f":"Lunch!A17","v":"Wurst-Käse Salat"},{"$f":"Lunch!B17","v":"pro Stück"},{"$f":"Lunch!C17","v":"CHF"},{"$f":"Lunch!D17","v":4},{"$f":"Lunch!E17","v":0},{"$f":"Lunch!F17","v":0},{"$f":"Lunch!G17","v":"CHF"},{"$f":"Lunch!H17","v":0}]
[{"$f":"Lunch!A18","v":"Gurkensalat mit Dill"},{"$f":"Lunch!B18","v":"pro Stück"},{"$f":"Lunch!C18","v":"CHF"},{"$f":"Lunch!D18","v":2.5},{"$f":"Lunch!E18","v":0},{"$f":"Lunch!F18","v":0},{"$f":"Lunch!G18","v":"CHF"},{"$f":"Lunch!H18","v":0}]
[{"$f":"Lunch!A19","v":"Ceasar Salat mit Speck und Croutons"},{"$f":"Lunch!B19","v":"pro Stück"},{"$f":"Lunch!C19","v":"CHF"},{"$f":"Lunch!D19","v":4.5},{"$f":"Lunch!E19","v":0},{"$f":"Lunch!F19","v":0},{"$f":"Lunch!G19","v":"CHF"},{"$f":"Lunch!H19","v":0}]
[{"$f":"Lunch!A20","v":"Asiatischer Glasnudelsalat mit Cashew Nüssen"},{"$f":"Lunch!B20","v":"pro Stück"},{"$f":"Lunch!C20","v":"CHF"},{"$f":"Lunch!D20","v":4.8},{"$f":"Lunch!E20","v":0},{"$f":"Lunch!F20","v":0},{"$f":"Lunch!G20","v":"CHF"},{"$f":"Lunch!H20","v":0}]
[{"$f":"Lunch!A21","v":"Poulet Tandoori Salat mit Jogurt und Minze "},{"$f":"Lunch!B21","v":"pro Stück"},{"$f":"Lunch!C21","v":"CHF"},{"$f":"Lunch!D21","v":4.5},{"$f":"Lunch!E21","v":0},{"$f":"Lunch!F21","v":0},{"$f":"Lunch!G21","v":"CHF"},{"$f":"Lunch!H21","v":0}]
[{"$f":"Lunch!A22","v":"Avocado Salat mit Mango und Chili"},{"$f":"Lunch!B22","v":"pro Stück"},{"$f":"Lunch!C22","v":"CHF"},{"$f":"Lunch!D22","v":4.2},{"$f":"Lunch!E22","v":0},{"$f":"Lunch!F22","v":0},{"$f":"Lunch!G22","v":"CHF"},{"$f":"Lunch!H22","v":0}]
[{"$f":"Lunch!A23","v":"Taboulée Salat mit Minze"},{"$f":"Lunch!B23","v":"pro Stück"},{"$f":"Lunch!C23","v":"CHF"},{"$f":"Lunch!D23","v":5},{"$f":"Lunch!E23","v":0},{"$f":"Lunch!F23","v":0},{"$f":"Lunch!G23","v":"CHF"},{"$f":"Lunch!H23","v":0}]
[{"$f":"Lunch!A24","v":"Risoni Salat mit Kräutern, Gurken, Oliven und Tomate"},{"$f":"Lunch!B24","v":"pro Stück"},{"$f":"Lunch!C24","v":"CHF"},{"$f":"Lunch!D24","v":3.5},{"$f":"Lunch!E24","v":0},{"$f":"Lunch!F24","v":0},{"$f":"Lunch!G24","v":"CHF"},{"$f":"Lunch!H24","v":0}]
[{"$f":"Lunch!A25","v":"Crevetten Salat Thai Style mit Chili, Limetten und Koriander"},{"$f":"Lunch!B25","v":"pro Stück"},{"$f":"Lunch!C25","v":"CHF"},{"$f":"Lunch!D25","v":7.2},{"$f":"Lunch!E25","v":0},{"$f":"Lunch!F25","v":0},{"$f":"Lunch!G25","v":"CHF"},{"$f":"Lunch!H25","v":0}]
[{"$f":"Lunch!A26","v":"Salat Add-Ons"},{"$f":"Lunch!B26","v":0},{"$f":"Lunch!C26","v":0},{"$f":"Lunch!D26","v":0},{"$f":"Lunch!E26","v":0},{"$f":"Lunch!F26","v":0},{"$f":"Lunch!G26","v":0},{"$f":"Lunch!H26","v":0}]
[{"$f":"Lunch!A27","v":"Gegrillte Pouletbruststreifen"},{"$f":"Lunch!B27","v":"pro Person"},{"$f":"Lunch!C27","v":"CHF"},{"$f":"Lunch!D27","v":6.2},{"$f":"Lunch!E27","v":0},{"$f":"Lunch!F27","v":0},{"$f":"Lunch!G27","v":"CHF"},{"$f":"Lunch!H27","v":0}]
[{"$f":"Lunch!A28","v":"Shrimp"},{"$f":"Lunch!B28","v":"pro Person"},{"$f":"Lunch!C28","v":"CHF"},{"$f":"Lunch!D28","v":6.5},{"$f":"Lunch!E28","v":0},{"$f":"Lunch!F28","v":0},{"$f":"Lunch!G28","v":"CHF"},{"$f":"Lunch!H28","v":0}]
[{"$f":"Lunch!A29","v":"Fetakäse"},{"$f":"Lunch!B29","v":"pro Person"},{"$f":"Lunch!C29","v":"CHF"},{"$f":"Lunch!D29","v":3.5},{"$f":"Lunch!E29","v":0},{"$f":"Lunch!F29","v":0},{"$f":"Lunch!G29","v":"CHF"},{"$f":"Lunch!H29","v":0}]
[{"$f":"Lunch!A30","v":"Gegrillte Rindfleischstreifen"},{"$f":"Lunch!B30","v":"pro Person"},{"$f":"Lunch!C30","v":"CHF"},{"$f":"Lunch!D30","v":9.5},{"$f":"Lunch!E30","v":0},{"$f":"Lunch!F30","v":0},{"$f":"Lunch!G30","v":"CHF"},{"$f":"Lunch!H30","v":0}]
[{"$f":"Lunch!A31","v":"Suppen im Weck-Glas\nab 10 Personen bestellbar"},{"$f":"Lunch!B31","v":0},{"$f":"Lunch!C31","v":0},{"$f":"Lunch!D31","v":0},{"$f":"Lunch!E31","v":0},{"$f":"Lunch!F31","v":0},{"$f":"Lunch!G31","v":0},{"$f":"Lunch!H31","v":0}]
[{"$f":"Lunch!A32","v":"Kalte Gazpacho"},{"$f":"Lunch!B32","v":"pro Stück"},{"$f":"Lunch!C32","v":"CHF"},{"$f":"Lunch!D32","v":3.5},{"$f":"Lunch!E32","v":0},{"$f":"Lunch!F32","v":0},{"$f":"Lunch!G32","v":"CHF"},{"$f":"Lunch!H32","v":0}]
[{"$f":"Lunch!A33","v":"Tomatensuppe mit Sahne Häubchen"},{"$f":"Lunch!B33","v":"pro Stück"},{"$f":"Lunch!C33","v":"CHF"},{"$f":"Lunch!D33","v":3.5},{"$f":"Lunch!E33","v":0},{"$f":"Lunch!F33","v":0},{"$f":"Lunch!G33","v":"CHF"},{"$f":"Lunch!H33","v":0}]
[{"$f":"Lunch!A34","v":"Kalte Avocado-Kokossuppe"},{"$f":"Lunch!B34","v":"pro Stück"},{"$f":"Lunch!C34","v":"CHF"},{"$f":"Lunch!D34","v":4.9000000000000004},{"$f":"Lunch!E34","v":0},{"$f":"Lunch!F34","v":0},{"$f":"Lunch!G34","v":"CHF"},{"$f":"Lunch!H34","v":0}]
[{"$f":"Lunch!A35","v":"Linsen-Ingwer Suppe mit Apfelwürfel"},{"$f":"Lunch!B35","v":"pro Stück"},{"$f":"Lunch!C35","v":"CHF"},{"$f":"Lunch!D35","v":3.5},{"$f":"Lunch!E35","v":0},{"$f":"Lunch!F35","v":0},{"$f":"Lunch!G35","v":"CHF"},{"$f":"Lunch!H35","v":0}]
[{"$f":"Lunch!A36","v":"Red Thai Currysoup"},{"$f":"Lunch!B36","v":"pro Stück"},{"$f":"Lunch!C36","v":"CHF"},{"$f":"Lunch!D36","v":3.5},{"$f":"Lunch!E36","v":0},{"$f":"Lunch!F36","v":0},{"$f":"Lunch!G36","v":"CHF"},{"$f":"Lunch!H36","v":0}]
[{"$f":"Lunch!A37","v":"Lunch warm\nab 10 Personen bestellbar"},{"$f":"Lunch!B37","v":0},{"$f":"Lunch!C37","v":0},{"$f":"Lunch!D37","v":0},{"$f":"Lunch!E37","v":0},{"$f":"Lunch!F37","v":0},{"$f":"Lunch!G37","v":0},{"$f":"Lunch!H37","v":0}]
[{"$f":"Lunch!A38","v":"Tapas Lunchpaket\nAlbondigas\nPatatas Bravas\nQuesadillas (Käse-Chili Füllung)\nDatteln im Speckmantel\nTortilla"},{"$f":"Lunch!B38","v":"pro Person"},{"$f":"Lunch!C38","v":"CHF"},{"$f":"Lunch!D38","v":19},{"$f":"Lunch!E38","v":0},{"$f":"Lunch!F38","v":0},{"$f":"Lunch!G38","v":"CHF"},{"$f":"Lunch!H38","v":0}]
[{"$f":"Lunch!A39","v":"Pasta Plausch \nZweierlei Pasta mit zwei Saucen\nBolognese-, Carbonara-, Napoli- oder Pesto Sauce\nDazu geriebener Parmesan"},{"$f":"Lunch!B39","v":"pro Person"},{"$f":"Lunch!C39","v":"CHF"},{"$f":"Lunch!D39","v":10.5},{"$f":"Lunch!E39","v":0},{"$f":"Lunch!F39","v":0},{"$f":"Lunch!G39","v":"CHF"},{"$f":"Lunch!H39","v":0}]
[{"$f":"Lunch!A40","v":"Tagesmenu aus dem Restaurant"},{"$f":"Lunch!B40","v":"pro Person"},{"$f":"Lunch!C40","v":"CHF"},{"$f":"Lunch!D40","v":13.5},{"$f":"Lunch!E40","v":0},{"$f":"Lunch!F40","v":0},{"$f":"Lunch!G40","v":"CHF"},{"$f":"Lunch!H40","v":0}]
[{"$f":"Dessert!A7","v":"Saisonales Tagesdessert   "},{"$f":"Dessert!B7","v":"pro Stück"},{"$f":"Dessert!C7","v":"CHF"},{"$f":"Dessert!D7","v":2.5},{"$f":"Dessert!E7","v":0},{"$f":"Dessert!F7","v":0},{"$f":"Dessert!G7","v":"CHF"},{"$f":"Dessert!H7","v":0}]
[{"$f":"Dessert!A8","v":"Toblerone-Mousse im Glas"},{"$f":"Dessert!B8","v":"pro Stück"},{"$f":"Dessert!C8","v":"CHF"},{"$f":"Dessert!D8","v":2.5},{"$f":"Dessert!E8","v":0},{"$f":"Dessert!F8","v":0},{"$f":"Dessert!G8","v":"CHF"},{"$f":"Dessert!H8","v":0}]
[{"$f":"Dessert!A9","v":"Macarons assortiert "},{"$f":"Dessert!B9","v":"pro Person"},{"$f":"Dessert!C9","v":"CHF"},{"$f":"Dessert!D9","v":1.9},{"$f":"Dessert!E9","v":0},{"$f":"Dessert!F9","v":0},{"$f":"Dessert!G9","v":"CHF"},{"$f":"Dessert!H9","v":0}]
[{"$f":"Dessert!A10","v":"Schoko-Kuss"},{"$f":"Dessert!B10","v":"pro Person"},{"$f":"Dessert!C10","v":"CHF"},{"$f":"Dessert!D10","v":1.8},{"$f":"Dessert!E10","v":0},{"$f":"Dessert!F10","v":0},{"$f":"Dessert!G10","v":"CHF"},{"$f":"Dessert!H10","v":0}]
[{"$f":"Dessert!A11","v":"Saisonaler Fruchtspiess"},{"$f":"Dessert!B11","v":"pro Stück"},{"$f":"Dessert!C11","v":"CHF"},{"$f":"Dessert!D11","v":2.5},{"$f":"Dessert!E11","v":0},{"$f":"Dessert!F11","v":0},{"$f":"Dessert!G11","v":"CHF"},{"$f":"Dessert!H11","v":0}]
[{"$f":"Dessert!A12","v":"Hausgemachtes Mini Pana Cotta mit saisonalen Früchten  "},{"$f":"Dessert!B12","v":"pro Stück"},{"$f":"Dessert!C12","v":"CHF"},{"$f":"Dessert!D12","v":2.5},{"$f":"Dessert!E12","v":0},{"$f":"Dessert!F12","v":0},{"$f":"Dessert!G12","v":"CHF"},{"$f":"Dessert!H12","v":0}]
[{"$f":"Dessert!A13","v":"Hausgemachter Schokoladenkuchen\n"},{"$f":"Dessert!B13","v":"pro Person"},{"$f":"Dessert!C13","v":"CHF"},{"$f":"Dessert!D13","v":3.5},{"$f":"Dessert!E13","v":0},{"$f":"Dessert!F13","v":0},{"$f":"Dessert!G13","v":"CHF"},{"$f":"Dessert!H13","v":0}]
[{"$f":"Dessert!A14","v":"Hausgemachter Zitronenkuchen\n"},{"$f":"Dessert!B14","v":"pro Person"},{"$f":"Dessert!C14","v":"CHF"},{"$f":"Dessert!D14","v":3.5},{"$f":"Dessert!E14","v":0},{"$f":"Dessert!F14","v":0},{"$f":"Dessert!G14","v":"CHF"},{"$f":"Dessert!H14","v":0}]
[{"$f":"Dessert!A15","v":"Hausgemachter Tiroler Cake\n"},{"$f":"Dessert!B15","v":"pro Person"},{"$f":"Dessert!C15","v":"CHF"},{"$f":"Dessert!D15","v":3.5},{"$f":"Dessert!E15","v":0},{"$f":"Dessert!F15","v":0},{"$f":"Dessert!G15","v":"CHF"},{"$f":"Dessert!H15","v":0}]
[{"$f":"Dessert!A16","v":"Hausgemachter Rüeblikuchen"},{"$f":"Dessert!B16","v":"pro Person"},{"$f":"Dessert!C16","v":"CHF"},{"$f":"Dessert!D16","v":3.5},{"$f":"Dessert!E16","v":0},{"$f":"Dessert!F16","v":0},{"$f":"Dessert!G16","v":"CHF"},{"$f":"Dessert!H16","v":0}]
[{"$f":"Dessert!A17","v":"Schoggigipfel"},{"$f":"Dessert!B17","v":"pro Stück"},{"$f":"Dessert!C17","v":"CHF"},{"$f":"Dessert!D17","v":3.5},{"$f":"Dessert!E17","v":0},{"$f":"Dessert!F17","v":0},{"$f":"Dessert!G17","v":"CHF"},{"$f":"Dessert!H17","v":0}]
[{"$f":"Dessert!A18","v":"Brownie"},{"$f":"Dessert!B18","v":"pro Stück"},{"$f":"Dessert!C18","v":"CHF"},{"$f":"Dessert!D18","v":2.5},{"$f":"Dessert!E18","v":0},{"$f":"Dessert!F18","v":0},{"$f":"Dessert!G18","v":"CHF"},{"$f":"Dessert!H18","v":0}]
[{"$f":"Dessert!A19","v":"Mini Patisserie, assortiert"},{"$f":"Dessert!B19","v":"pro Person"},{"$f":"Dessert!C19","v":"CHF"},{"$f":"Dessert!D19","v":2.5},{"$f":"Dessert!E19","v":0},{"$f":"Dessert!F19","v":0},{"$f":"Dessert!G19","v":"CHF"},{"$f":"Dessert!H19","v":0}]
[{"$f":"Dessert!A20","v":"Donuts"},{"$f":"Dessert!B20","v":"pro Stück"},{"$f":"Dessert!C20","v":"CHF"},{"$f":"Dessert!D20","v":2.5},{"$f":"Dessert!E20","v":0},{"$f":"Dessert!F20","v":0},{"$f":"Dessert!G20","v":"CHF"},{"$f":"Dessert!H20","v":0}]
[{"$f":"Dessert!A21","v":"Muffins\n(Blueberry, Schokolade, Himbeere)"},{"$f":"Dessert!B21","v":"pro Stück"},{"$f":"Dessert!C21","v":"CHF"},{"$f":"Dessert!D21","v":2.5},{"$f":"Dessert!E21","v":0},{"$f":"Dessert!F21","v":0},{"$f":"Dessert!G21","v":"CHF"},{"$f":"Dessert!H21","v":0}]
[{"$f":"Dessert!A22","v":"Cookies\n(Schokolade, Macadamia, ChocolateChip, Walnuss, Butter)"},{"$f":"Dessert!B22","v":"pro Person"},{"$f":"Dessert!C22","v":"CHF"},{"$f":"Dessert!D22","v":4},{"$f":"Dessert!E22","v":0},{"$f":"Dessert!F22","v":0},{"$f":"Dessert!G22","v":"CHF"},{"$f":"Dessert!H22","v":0}]
[{"$f":"Dessert!A23","v":"Waffel"},{"$f":"Dessert!B23","v":"pro Stück"},{"$f":"Dessert!C23","v":"CHF"},{"$f":"Dessert!D23","v":3.8},{"$f":"Dessert!E23","v":0},{"$f":"Dessert!F23","v":0},{"$f":"Dessert!G23","v":"CHF"},{"$f":"Dessert!H23","v":0}]
[{"$f":"Dessert!A24","v":"Chiapudding"},{"$f":"Dessert!B24","v":"pro Stück"},{"$f":"Dessert!C24","v":"CHF"},{"$f":"Dessert!D24","v":2.5},{"$f":"Dessert!E24","v":0},{"$f":"Dessert!F24","v":0},{"$f":"Dessert!G24","v":"CHF"},{"$f":"Dessert!H24","v":0}]
[{"$f":"Dessert!A25","v":"Magnum Mini Glace (Classic, Almond, White)"},{"$f":"Dessert!B25","v":"pro Stück"},{"$f":"Dessert!C25","v":"CHF"},{"$f":"Dessert!D25","v":3.3},{"$f":"Dessert!E25","v":0},{"$f":"Dessert!F25","v":0},{"$f":"Dessert!G25","v":"CHF"},{"$f":"Dessert!H25","v":0}]
[{"$f":"Dessert!A26","v":"Veganes Panna Cotta mit Fruchttopping"},{"$f":"Dessert!B26","v":"pro Stück"},{"$f":"Dessert!C26","v":"CHF"},{"$f":"Dessert!D26","v":4.2},{"$f":"Dessert!E26","v":0},{"$f":"Dessert!F26","v":0},{"$f":"Dessert!G26","v":"CHF"},{"$f":"Dessert!H26","v":0}]
[{"$f":"Dessert!A27","v":"Veganer Apfelstrudel"},{"$f":"Dessert!B27","v":"pro Person"},{"$f":"Dessert!C27","v":"CHF"},{"$f":"Dessert!D27","v":4.2},{"$f":"Dessert!E27","v":0},{"$f":"Dessert!F27","v":0},{"$f":"Dessert!G27","v":"CHF"},{"$f":"Dessert!H27","v":0}]
[{"$f":"Dessert!A28","v":"Kichererbsen-Schokoladenmousse"},{"$f":"Dessert!B28","v":"pro Stück"},{"$f":"Dessert!C28","v":"CHF"},{"$f":"Dessert!D28","v":3.5},{"$f":"Dessert!E28","v":0},{"$f":"Dessert!F28","v":0},{"$f":"Dessert!G28","v":"CHF"},{"$f":"Dessert!H28","v":0}]
[{"$f":"Dessert!A29","v":"Geburtstagskuchen / -Torte für den speziellen Tag"},{"$f":"Dessert!B29","v":"Absprache"},{"$f":"Dessert!C29","v":0},{"$f":"Dessert!D29","v":0},{"$f":"Dessert!E29","v":0},{"$f":"Dessert!F29","v":0},{"$f":"Dessert!G29","v":0},{"$f":"Dessert!H29","v":0}]
[{"$f":"Dessert!A30","v":"Glace (in der Eistruhe) \nFür Ihre Sitzung stellen wir Ihnen gerne eine Eistruhe mit einer Auswahl an leckerem Glace / Becher in Ihnen Meetingraum. "},{"$f":"Dessert!B30","v":"Absprache"},{"$f":"Dessert!C30","v":0},{"$f":"Dessert!D30","v":0},{"$f":"Dessert!E30","v":0},{"$f":"Dessert!F30","v":0},{"$f":"Dessert!G30","v":0},{"$f":"Dessert!H30","v":0}]
[{"$f":"Getränke!A9","v":"Arkina ohne Kohlensäure, PET"},{"$f":"Getränke!B9","v":"0.5 l"},{"$f":"Getränke!C9","v":"CHF"},{"$f":"Getränke!D9","v":3.4},{"$f":"Getränke!E9","v":0},{"$f":"Getränke!F9","v":0},{"$f":"Getränke!G9","v":"CHF"},{"$f":"Getränke!H9","v":0}]
[{"$f":"Getränke!A10","v":"Arkina ohne Kohlensäure, Glas"},{"$f":"Getränke!B10","v":"1l"},{"$f":"Getränke!C10","v":"CHF"},{"$f":"Getränke!D10","v":6},{"$f":"Getränke!E10","v":0},{"$f":"Getränke!F10","v":0},{"$f":"Getränke!G10","v":"CHF"},{"$f":"Getränke!H10","v":0}]
[{"$f":"Getränke!A11","v":"Arkina mit Kohlensäure, PET"},{"$f":"Getränke!B11","v":"0.5 l"},{"$f":"Getränke!C11","v":"CHF"},{"$f":"Getränke!D11","v":3.4},{"$f":"Getränke!E11","v":0},{"$f":"Getränke!F11","v":0},{"$f":"Getränke!G11","v":"CHF"},{"$f":"Getränke!H11","v":0}]
[{"$f":"Getränke!A12","v":"Arkina mit Kohlensäure, Glas"},{"$f":"Getränke!B12","v":"1l"},{"$f":"Getränke!C12","v":"CHF"},{"$f":"Getränke!D12","v":6},{"$f":"Getränke!E12","v":0},{"$f":"Getränke!F12","v":0},{"$f":"Getränke!G12","v":"CHF"},{"$f":"Getränke!H12","v":0}]
[{"$f":"Getränke!A13","v":"Flavored Water mit saisonalem Geschmack  "},{"$f":"Getränke!B13","v":"pro Glas"},{"$f":"Getränke!C13","v":"CHF"},{"$f":"Getränke!D13","v":1.5},{"$f":"Getränke!E13","v":0},{"$f":"Getränke!F13","v":0},{"$f":"Getränke!G13","v":"CHF"},{"$f":"Getränke!H13","v":0}]
[{"$f":"Getränke!A14","v":"Säfte und Hausgemachtes"},{"$f":"Getränke!B14","v":0},{"$f":"Getränke!C14","v":0},{"$f":"Getränke!D14","v":0},{"$f":"Getränke!E14","v":0},{"$f":"Getränke!F14","v":0},{"$f":"Getränke!G14","v":0},{"$f":"Getränke!H14","v":0}]
[{"$f":"Getränke!A15","v":"Orangensaft"},{"$f":"Getränke!B15","v":"1 l"},{"$f":"Getränke!C15","v":"CHF"},{"$f":"Getränke!D15","v":6.5},{"$f":"Getränke!E15","v":0},{"$f":"Getränke!F15","v":0},{"$f":"Getränke!G15","v":"CHF"},{"$f":"Getränke!H15","v":0}]
[{"$f":"Getränke!A16","v":"Hausgemachter Eistee  "},{"$f":"Getränke!B16","v":"pro Glas"},{"$f":"Getränke!C16","v":"CHF"},{"$f":"Getränke!D16","v":2.5},{"$f":"Getränke!E16","v":0},{"$f":"Getränke!F16","v":0},{"$f":"Getränke!G16","v":"CHF"},{"$f":"Getränke!H16","v":0}]
[{"$f":"Getränke!A17","v":"Süssgetränke"},{"$f":"Getränke!B17","v":0},{"$f":"Getränke!C17","v":0},{"$f":"Getränke!D17","v":0},{"$f":"Getränke!E17","v":0},{"$f":"Getränke!F17","v":0},{"$f":"Getränke!G17","v":0},{"$f":"Getränke!H17","v":0}]
[{"$f":"Getränke!A18","v":"Coca-Cola"},{"$f":"Getränke!B18","v":"4.5 dl"},{"$f":"Getränke!C18","v":"CHF"},{"$f":"Getränke!D18","v":3.4},{"$f":"Getränke!E18","v":0},{"$f":"Getränke!F18","v":0},{"$f":"Getränke!G18","v":"CHF"},{"$f":"Getränke!H18","v":0}]
[{"$f":"Getränke!A19","v":"Coca-Cola Light"},{"$f":"Getränke!B19","v":"4.5 dl"},{"$f":"Getränke!C19","v":"CHF"},{"$f":"Getränke!D19","v":3.4},{"$f":"Getränke!E19","v":0},{"$f":"Getränke!F19","v":0},{"$f":"Getränke!G19","v":"CHF"},{"$f":"Getränke!H19","v":0}]
[{"$f":"Getränke!A20","v":"Cola Zero"},{"$f":"Getränke!B20","v":"4.5 dl"},{"$f":"Getränke!C20","v":"CHF"},{"$f":"Getränke!D20","v":3.4},{"$f":"Getränke!E20","v":0},{"$f":"Getränke!F20","v":0},{"$f":"Getränke!G20","v":"CHF"},{"$f":"Getränke!H20","v":0}]
[{"$f":"Getränke!A21","v":"Fanta"},{"$f":"Getränke!B21","v":"4.5 dl"},{"$f":"Getränke!C21","v":"CHF"},{"$f":"Getränke!D21","v":3.4},{"$f":"Getränke!E21","v":0},{"$f":"Getränke!F21","v":0},{"$f":"Getränke!G21","v":"CHF"},{"$f":"Getränke!H21","v":0}]
[{"$f":"Getränke!A22","v":"Sprite"},{"$f":"Getränke!B22","v":"4.5 dl"},{"$f":"Getränke!C22","v":"CHF"},{"$f":"Getränke!D22","v":3.4},{"$f":"Getränke!E22","v":0},{"$f":"Getränke!F22","v":0},{"$f":"Getränke!G22","v":"CHF"},{"$f":"Getränke!H22","v":0}]
[{"$f":"Getränke!A23","v":"Fusetea Zitrone"},{"$f":"Getränke!B23","v":"5 dl"},{"$f":"Getränke!C23","v":"CHF"},{"$f":"Getränke!D23","v":3.4},{"$f":"Getränke!E23","v":0},{"$f":"Getränke!F23","v":0},{"$f":"Getränke!G23","v":"CHF"},{"$f":"Getränke!H23","v":0}]
[{"$f":"Getränke!A24","v":"Fusetea Pfirsich"},{"$f":"Getränke!B24","v":"5 dl"},{"$f":"Getränke!C24","v":"CHF"},{"$f":"Getränke!D24","v":3.4},{"$f":"Getränke!E24","v":0},{"$f":"Getränke!F24","v":0},{"$f":"Getränke!G24","v":"CHF"},{"$f":"Getränke!H24","v":0}]
[{"$f":"Getränke!A25","v":"Rivella rot "},{"$f":"Getränke!B25","v":"5 dl"},{"$f":"Getränke!C25","v":"CHF"},{"$f":"Getränke!D25","v":3.4},{"$f":"Getränke!E25","v":0},{"$f":"Getränke!F25","v":0},{"$f":"Getränke!G25","v":"CHF"},{"$f":"Getränke!H25","v":0}]
[{"$f":"Getränke!A26","v":"Rivella blau "},{"$f":"Getränke!B26","v":"5 dl"},{"$f":"Getränke!C26","v":"CHF"},{"$f":"Getränke!D26","v":3.4},{"$f":"Getränke!E26","v":0},{"$f":"Getränke!F26","v":0},{"$f":"Getränke!G26","v":"CHF"},{"$f":"Getränke!H26","v":0}]
[{"$f":"Getränke!A27","v":"Rivella grün"},{"$f":"Getränke!B27","v":"5 dl"},{"$f":"Getränke!C27","v":"CHF"},{"$f":"Getränke!D27","v":3.4},{"$f":"Getränke!E27","v":0},{"$f":"Getränke!F27","v":0},{"$f":"Getränke!G27","v":"CHF"},{"$f":"Getränke!H27","v":0}]
[{"$f":"Getränke!A28","v":"Ramseier Apfelschorle"},{"$f":"Getränke!B28","v":"5 dl"},{"$f":"Getränke!C28","v":"CHF"},{"$f":"Getränke!D28","v":3.4},{"$f":"Getränke!E28","v":0},{"$f":"Getränke!F28","v":0},{"$f":"Getränke!G28","v":"CHF"},{"$f":"Getränke!H28","v":0}]
[{"$f":"Getränke!A29","v":"Tee"},{"$f":"Getränke!B29","v":0},{"$f":"Getränke!C29","v":0},{"$f":"Getränke!D29","v":0},{"$f":"Getränke!E29","v":0},{"$f":"Getränke!F29","v":0},{"$f":"Getränke!G29","v":0},{"$f":"Getränke!H29","v":0}]
[{"$f":"Getränke!A30","v":"Diverse Sorten, assortiert"},{"$f":"Getränke!B30","v":"pro Tasse"},{"$f":"Getränke!C30","v":"CHF"},{"$f":"Getränke!D30","v":2.6},{"$f":"Getränke!E30","v":0},{"$f":"Getränke!F30","v":0},{"$f":"Getränke!G30","v":"CHF"},{"$f":"Getränke!H30","v":0}]
[{"$f":"Getränke!A31","v":"Kaffee"},{"$f":"Getränke!B31","v":0},{"$f":"Getränke!C31","v":0},{"$f":"Getränke!D31","v":0},{"$f":"Getränke!E31","v":0},{"$f":"Getränke!F31","v":0},{"$f":"Getränke!G31","v":0},{"$f":"Getränke!H31","v":0}]
[{"$f":"Getränke!A32","v":"Frischer Kaffee"},{"$f":"Getränke!B32","v":"pro Tasse"},{"$f":"Getränke!C32","v":"CHF"},{"$f":"Getränke!D32","v":2.6},{"$f":"Getränke!E32","v":0},{"$f":"Getränke!F32","v":0},{"$f":"Getränke!G32","v":"CHF"},{"$f":"Getränke!H32","v":0}]
[{"$f":"Getränke!A33","v":"Cappuccino"},{"$f":"Getränke!B33","v":"pro Tasse"},{"$f":"Getränke!C33","v":"CHF"},{"$f":"Getränke!D33","v":2.6},{"$f":"Getränke!E33","v":0},{"$f":"Getränke!F33","v":0},{"$f":"Getränke!G33","v":"CHF"},{"$f":"Getränke!H33","v":0}]
[{"$f":"Getränke!A34","v":"Café Latte"},{"$f":"Getränke!B34","v":"pro Tasse"},{"$f":"Getränke!C34","v":"CHF"},{"$f":"Getränke!D34","v":2.6},{"$f":"Getränke!E34","v":0},{"$f":"Getränke!F34","v":0},{"$f":"Getränke!G34","v":"CHF"},{"$f":"Getränke!H34","v":0}]
[{"$f":"Getränke!A35","v":"Espresso"},{"$f":"Getränke!B35","v":"pro Tasse"},{"$f":"Getränke!C35","v":"CHF"},{"$f":"Getränke!D35","v":2.6},{"$f":"Getränke!E35","v":0},{"$f":"Getränke!F35","v":0},{"$f":"Getränke!G35","v":"CHF"},{"$f":"Getränke!H35","v":0}]
[{"$f":"Getränke!A36","v":"Alkoholische Getränke"},{"$f":"Getränke!B36","v":0},{"$f":"Getränke!C36","v":0},{"$f":"Getränke!D36","v":0},{"$f":"Getränke!E36","v":0},{"$f":"Getränke!F36","v":0},{"$f":"Getränke!G36","v":0},{"$f":"Getränke!H36","v":0}]
[{"$f":"Getränke!A37","v":"Bier"},{"$f":"Getränke!B37","v":0},{"$f":"Getränke!C37","v":0},{"$f":"Getränke!D37","v":0},{"$f":"Getränke!E37","v":0},{"$f":"Getränke!F37","v":0},{"$f":"Getränke!G37","v":0},{"$f":"Getränke!H37","v":0}]
[{"$f":"Getränke!A38","v":"Feldschlösschen"},{"$f":"Getränke!B38","v":"3.3 dl"},{"$f":"Getränke!C38","v":"CHF"},{"$f":"Getränke!D38","v":3.5},{"$f":"Getränke!E38","v":0},{"$f":"Getränke!F38","v":0},{"$f":"Getränke!G38","v":"CHF"},{"$f":"Getränke!H38","v":0}]
[{"$f":"Getränke!A39","v":"Feldschlösschen\t"},{"$f":"Getränke!B39","v":"3.3 dl"},{"$f":"Getränke!C39","v":"CHF"},{"$f":"Getränke!D39","v":3.5},{"$f":"Getränke!E39","v":0},{"$f":"Getränke!F39","v":0},{"$f":"Getränke!G39","v":"CHF"},{"$f":"Getränke!H39","v":0}]
[]
[]
["Total (inkl. MWST)",null,null,null,null,null,"CHF",{"$f":"SUM(H19:H254)","v":0}]
[]
["Vielen Dank für Ihre Bestellung!"]

{"sheet":"Frühstück und Coffee Break","index":1,"n_rows":50,"n_cols":8,"rows_kept":50,"cut":false,"hidden":false,"merged":[[2,0,2,7]]}
[" Bestellung Catering"]
[]
[]
["Navigieren Sie ganz unkompiziert durch das Bestellformular."]
[null,"Einheit",null,"Preis/Einheit",null,"Anzahl",null,"Total"]
["Frühstück \nCombos ab 5 Personen bestellbar"]
["Einfaches Frühstück \nFrischer Kaffee oder Tee\nOrangensaft \nFrisches Gipfeli \nSaisonale Frucht   \nHausgemachtes Flavoured Water   ","pro Person","CHF",8,null,null,"CHF",{"$f":"IF(F7=0,0,IF(F7<5,D7*5,IF(F7>=5,D7*F7)))","v":0}]
["Einfaches Frühstück \nFrischer Kaffee oder Tee\nOrangensaft \nKnuspriges Brötchen\nSaisonale Frucht   \nHausgemachtes Flavoured Water   ","pro Person","CHF",8,null,null,"CHF",{"$f":"IF(F8=0,0,IF(F8<5,D8*5,IF(F8>=5,D8*F8)))","v":0}]
["Vital Frühstück \nFrischer Kaffee oder Tee\nOrangensaft \nFrisches Gipfeli \nButter und Konfitüre\nBirchermüesli \nSaisonale Frucht  \nHausgemachtes Flavoured Water ","pro Person","CHF",11,null,null,"CHF",0]
["Vital Frühstück \nFrischer Kaffee oder Tee\nOrangensaft \nKnuspriges Brötchen\nButter und Konfitüre\nBirchermüesli \nSaisonale Frucht  \nHausgemachtes Flavoured Water ","pro Person","CHF",11,null,null,"CHF",{"$f":"IF(F10=0,0,IF(F10<5,D10*5,IF(F10>=5,D10*F10)))","v":0}]
["Vital Frühstück \nFrischer Kaffee oder Tee\nOrangensaft \nFrisches Gipfeli \nButter und Konfitüre\nJogurt mit Früchte Topping\nSaisonale Frucht  \nHausgemachtes Flavoured Water ","pro Person","CHF",11,null,null,"CHF",0]
["Vital Frühstück \nFrischer Kaffee oder Tee\nOrangensaft \nKnuspriges Brötchen\nButter und Konfitüre\nJogurt mit Früchte Topping\nSaisonale Frucht  \nHausgemachtes Flavoured Water ","pro Person","CHF",11,null,null,"CHF",0]
["Glutenarmes Frühstück \nFrischer Kaffee oder Tee\nOrangensaft \nGlutenfreies Brötchen (separat verpackt)\nButter und Konfitüre\nJogurt mit Früchte Topping\nSaisonale Frucht  \nHausgemachtes Flavoured Water ","pro Person","CHF",19,null,null,"CHF",{"$f":"IF(F13=0,0,IF(F13<5,D13*5,IF(F13>=5,D13*F13)))","v":0}]
["Add-Ons / Snacks\nFrühstück ab 5 Personen bestellbar"]
["Buttergipfeli","pro Stück","CHF",1.6,null,null,"CHF",0]
["Laugengipfeli","pro Stück","CHF",1.6,null,null,"CHF",0]
["Rusticogipfeli","pro Stück","CHF",1.6,null,null,"CHF",0]
["Knuspriges Bürli","pro Stück","CHF",2.5,null,null,"CHF",0]
["Weggli","pro Stück","CHF",2.5,null,null,"CHF",0]
["Semmeli","pro Stück","CHF",2.5,null,null,"CHF",0]
["Früchtebrötli","pro Stück","CHF",2.5,null,null,"CHF",0]
["Körnerbrötli","pro Stück","CHF",2.5,null,null,"CHF",0]
["Dinkelbrötli","pro Stück","CHF",2.5,null,null,"CHF",0]
["Sojasemmel","pro Stück","CHF",2.5,null,null,"CHF",0]
["Jogurt mit Früchte-Topping im Glas","pro Stück","CHF",2.7,null,null,"CHF",0]
["Jogurt mit Crunch Topping im Glas","pro Stück","CHF",2.7,null,null,"CHF",0]
["Hausgemachtes Birchermüesli im Glas","pro Stück","CHF",4.7,null,null,"CHF",0]
["Veganes Birchermüesli","pro Stück","CHF",3.5,null,null,"CHF",0]
["Chiapudding","pro Stück","CHF",2.5,null,null,"CHF",0]
["Laktosefreies Jogurt","pro Stück","CHF",2.5,null,null,"CHF",0]
["Fruchtsalat im Glas","pro Stück","CHF",2.5,null,null,"CHF",0]
["Butter-und Konfitüren-Variation","pro Person","CHF",2.5,null,null,"CHF",0]
["Süsses und Spezielles"]
["Schoggigipfeli","pro Stück","CHF",2.5,null,null,"CHF",0]
["Muffins Chocolate-Vanilla","pro Stück","CHF",2.5,null,null,"CHF",0]
["Muffins Lemon Meringue","pro Stück","CHF",2.5,null,null,"CHF",0]
["Muffins Salted Caramel","pro Stück","CHF",2.5,null,null,"CHF",0]
["Muffins Apple-Cinnamon","pro Stück","CHF",2.5,null,null,"CHF",0]
["Muffins Blueberry","pro Stück","CHF",2.5,null,null,"CHF",0]
["Dounut\n","pro Stück","CHF",2.5,null,null,"CHF",0]
["Brownie","pro Stück","CHF",2.5,null,null,"CHF",0]
["Mini Patisserie, assortiert","pro Person","CHF",2.5,null,null,"CHF",0]
["Fruchtspiessli","pro Stück","CHF",2.5,null,null,"CHF",0]
["Cookie-Variation","pro Person","CHF",4.5,null,null,"CHF",0]
["Waffel","pro Stück","CHF",3.5,null,null,"CHF",0]
["Bagel mit Frischkäsefüllung ","pro Stück","CHF",8.5,null,null,"CHF",0]
["Coffee Break\nCoffee Break ab 5 Personen bestellbar",null,null,null,null,null,null,0]
["Swiss Break\nFrischer Kaffee oder Tee\nOrangensaft \nSüssgebäck assortiert\nSaisonaler Früchtekorb \nHausgemachtes Flavoured Water ","pro Person","CHF",9,null,null,"CHF",0]
["French Break\nFrischer Kaffee oder Tee\nOrangensaft  \nBrioche / Croissant\nSaisonaler Früchtekorb\nHausgemachtes Flavoured Water","pro Person","CHF",9,null,null,"CHF",0]
["Bayrisch Break\nFrischer Kaffee oder Tee\nBretzel\nBlechkuchen\nHausgemachtes Flavoured Water ","pro Person","CHF",11,null,null,"CHF",0]

{"sheet":"Sandwiches & Apéro","index":2,"n_rows":99,"n_cols":8,"rows_kept":99,"cut":false,"hidden":false,"merged":[[98,0,98,7],[2,0,2,7]]}
[" Bestellung Catering"]
[]
[]
["Navigieren Sie ganz unkompiziert durch das Bestellformular."]
[null,"Einheit",null,"Preis/Einheit",null,"Anzahl",null,"Total"]
["Znüni Sandwiches\nSandwiches ab 5 Personen bestellbar"]
["Kleine Apéro Sandwiches\n(3 Brötchen pro Person)\nVariation an Laugenbrötchen, Rusticobrötchen, \nBrioche und Mini Bürli, gefüllt mit\nThon-Mousse, Frischkäse, Rohschinken, Käse und gegrilltem Gemüse\n","pro Person","CHF",9,null,null,"CHF",{"$f":"IF(F7=0,0,IF(F7<5,D7*5,IF(F7>=5,D7*F7)))","v":0}]
["Steinofenbaguette, 52cm\n(reicht für ca. 6 Personen)\nKnuspriges Baguette gefüllt mit Schinken, Salami, Fleischkäse\nund Käse, garniert mit Salat, Gürkchen und Tomaten\n","pro Stück","CHF",22.5,null,null,"CHF",0]
["Steinofenbaguette, 52cm vegan\n(reicht für ca. 6 Personen)\nKnuspriges Baguette gefüllt mit Avocado mit weissen Bohnen, Antipasti und Räuchertofu und Hummus\n","pro Stück","CHF",31,null,null,"CHF",0]
["Triangle Sandwich\nGerösteter Toast gefüllt mit Schinken und Käse\n\n","pro Stück","CHF",6.5,null,null,"CHF",0]
["Triangle Sandwich\nGerösteter Toast gefüllt mit Thonmousse","pro Stück","CHF",6.5,null,null,"CHF",0]
["Triangle Sandwich\nGerösteter Toast gefüllt mit Eimousse ","pro Stück","CHF",6.5,null,null,"CHF",0]
["Triangle Sandwich\nGerösteter Toast gefüllt mit Kräuterfrischkäse","pro Stück","CHF",6.5,null,null,"CHF",0]
["Triangle Sandwich vegan\nGerösteter Toast gefüllt mit Avocado und weissen Bohnen","pro Stück","CHF",6.5,null,null,"CHF",0]
["Triangle Sandwich vegan\nGerösteter Toast gefüllt mit Antipasti\n","pro Stück","CHF",6.5,null,null,"CHF",0]
["Triangle Sandwich vegan\nGerösteter Toast gefüllt mit Räuchertofu und Hummus\n","pro Stück","CHF",6.5,null,null,"CHF",0]
["Canapées \nWeizentoast belegt mit Ei\n","pro Stück","CHF",3.5,null,null,"CHF",0]
["Canapées\nWeizentoast belegt mit Spargel\n","pro Stück","CHF",3.5,null,null,"CHF",0]
["Canapées \nWeizentoast belegt mit Lachs\n","pro Stück","CHF",3.5,null,null,"CHF",0]
["Canapées\nWeizentoast belegt mit Thonmousse \n","pro Stück","CHF",3.5,null,null,"CHF",0]
["Canapées\nWeizentoast belegt mit Rindstatar\n","pro Stück","CHF",3.5,null,null,"CHF",0]
["Vollkorn Canapées\nVollkorntoast belegt mit Ei\n","pro Stück","CHF",3.5,null,null,"CHF",0]
["Vollkorn Canapées\nVollkorntoast belegt mit Spargel\n\n","pro Stück","CHF",3.5,null,null,"CHF",0]
["Vollkorn Canapées\nVollkorntoast belegt mit Lachs \n","pro Stück","CHF",3.5,null,null,"CHF",{"$f":"IF(F24=0,0,IF(F24<5,D24*5,IF(F24>=5,D24*F24)))","v":0}]
["Vollkorn Canapées\nVollkorntoast belegt mit Thonmousse ","pro Stück","CHF",3.5,null,null,"CHF",0]
["Vollkorn Canapées\nVollkorntoast belegt mit Rindstatar","pro Stück","CHF",3.5,null,null,"CHF",{"$f":"IF(F26=0,0,IF(F26<5,D26*5,IF(F26>=5,D26*F26)))","v":0}]
["Apéro"]
["Varianten\nApéro Variationen ab 10 Personen bestellbar"]
["Small Apéro\nKleine Apéro Sandwiches assortiert\nFruchtsalat im Glas","pro Person","CHF",15,null,null,"CHF",{"$f":"IF(F29=0,0,IF(F29<5,D29*10,IF(F29>=10,D29*F29)))","v":0}]
["Medium Apéro\nParty Schinkengipfel\nMini Chäschüechli\nMozzarella-Tomaten Spiess\nZucchini-Röllchen gefüllt mit Frischkäse\nHackbällchen in pikanter Tomatensauce im Glas","pro Person","CHF",19.5,null,null,"CHF",{"$f":"IF(F30=0,0,IF(F30<5,D30*10,IF(F30>=10,D30*F30)))","v":0}]
["Large\nPoulet-Satay Spiessli\nGemüse-Frühlingsrolle mit Sweet Chilisauce\nGebackene Shrimps mit Dip Sauce            \nAsiatischer Gurkensalat im Glas\nAntipasti Spiessli\nGrisini mit Rohschinken\nFruchtsalat im Glas","pro Person","CHF",34,null,null,"CHF",0]
["XL Apéro                    \t\nApéro-Sandwiches mit Rauchlachs, Rohschinken oder Brie\nWrap Antipasti Style \nSamosa mit Dip Sauce\nFischknusperli mit Sauce Tartar\nBruschetta mit Tomate und Zwiebel\nKrevetten Salat Thai Style im Glas\nSaisonale Spiesse \nHausgemachtes Mini Pana Cotta mit saisonalen Früchten  ","pro Person","CHF",36,null,null,"CHF",0]
["Sandwiches\nSandwiches ab 5 Personen bestellbar\n"]
["Focaccia  \t\ngefüllt mit Falafel und Hummuu, garniert mit reichlich Salat\n","pro Stück","CHF",7.5,null,null,"CHF",{"$f":"IF(F34=0,0,IF(F34<5,D34*5,IF(F34>=5,D34*F34)))","v":0}]
["Focaccia  \t\ngefüllt mit Roastbeef, Frischkäse, Salat, Tomaten, Gurken und Radieschen\n","pro Stück","CHF",12.5,null,null,"CHF",0]
["Focaccia  \t\ngefüllt mit Pouletstreifen, Currysauce, Salat und Tomaten \n","pro Stück","CHF",12.5,null,null,"CHF",0]
["Focaccia  \t\ngefüllt mit Tomaten, Mozzarella, Frischkäse und Basilikum","pro Stück","CHF",12.5,null,null,"CHF",0]
["Wraps\nWraps ab 5 Personen bestellbar"]
["Wrap Swiss Style\ngefüllt mit Vorderschinken und Emmentaler","pro Stück","CHF",7.5,null,null,"CHF",0]
["Wrap Italy Style\ngefüllt mit Rucola, Parmesan, Pinienkernen,\nRohschinken und getrockneten Tomaten","pro Stück","CHF",13,null,null,"CHF",0]
["Wrap Moroccan Style\ngefüllt mit Bulgur, Hummus, Aubergine, Granatapfelkernen \nund Salat","pro Stück","CHF",7.5,null,null,"CHF",0]
["Wrap Antipasti\ngefüllt mit Antipastigemüse und Rucola","pro Stück","CHF",7.5,null,null,"CHF",0]
["Mini Wrap\ngefüllt mit Philadelphia, Rucola, Zuchetti, Radieschen und Karotten\n","pro Stück","CHF",2.5,null,null,"CHF",0]
["Mini Wrap\ngefüllt mit Rauchlachs, Meerrettich, Salat, Zwiebeln und Gurken\n","pro Stück","CHF",3,null,null,"CHF",{"$f":"IF(F44=0,0,IF(F44<5,D44*5,IF(F44>=5,D44*F44)))","v":0}]
["Mini Wrap\ngefüllt mit Roastbeef, Salat, Zwiebeln, Peperoni und Senf-Mayonaise","pro Stück","CHF",3.5,null,null,"CHF",0]
["Kalte Häppchen\nKalte Häppchen ab 10 Personen bestellbar"]
["Rohe Gemüsesticks mit Dip Sauce","pro Person","CHF",2.5,null,null,"CHF",{"$f":"IF(F47=0,0,IF(F47<5,D47*10,IF(F47>=10,D47*F47)))","v":0}]
["Bruschetta mit frischen Tomaten und Zwiebel","pro Stück","CHF",3.2,null,null,"CHF",{"$f":"IF(F48=0,0,IF(F48<5,D48*10,IF(F48>=10,D48*F48)))","v":0}]
["Rauchlachs auf gerösteter Toastbrotscheibe","pro Stück","CHF",4,null,null,"CHF",{"$f":"IF(F49=0,0,IF(F49<5,D49*10,IF(F49>=10,D49*F49)))","v":0}]
["Crevetten Cocktail im Glas","pro Stück","CHF",4.2,null,null,"CHF",0]
["Asiatischer Gurkensalat im Glas","pro Stück","CHF",3.5,null,null,"CHF",0]
["Zucchini-Röllchen gefüllt mit Frischkäse","pro Person","CHF",3.5,null,null,"CHF",0]
["Grisini mit Rohschinken","pro Stück","CHF",2.5,null,null,"CHF",0]
["Roastbeef Röllchen mit Frischkäse","pro Stück","CHF",4.5,null,null,"CHF",0]
["Mini Pastetchen mit Rauchlachstartar","pro Stück","CHF",2.5,null,null,"CHF",{"$f":"IF(F55=0,0,IF(F55<5,D55*10,IF(F55>=10,D55*F55)))","v":0}]
["Mini Pastetchen mit Frischkäsefüllung","pro Stück","CHF",2.5,null,null,"CHF",0]
["Mini Pastetchen mit Thonmousse","pro Stück","CHF",2.5,null,null,"CHF",0]
["Mini Pita Brot mit Hummus","pro Stück","CHF",3.2,null,null,"CHF",0]
["Spiessli"]
["Tomaten-Mozzarella ","pro Stück","CHF",4,null,null,"CHF",0]
["Saisonale Früchte  ","pro Stück","CHF",3.5,null,null,"CHF",0]
["Antipasti ","pro Stück","CHF",6.5,null,null,"CHF",0]
["Melone-Rohschinken  ","pro Stück","CHF",3.5,null,null,"CHF",{"$f":"IF(F63=0,0,IF(F63<5,D63*10,IF(F63>=10,D63*F63)))","v":0}]
["Platten\nApéro Platten ab 5 Personen bestellbar"]
["Käse Platte    \n(100g Käse pro Person)\nVerschiedene Sorten an Hart- und Weichkäse\ngarniert mit Trauben und Walnüssen\ndazu servieren wir Ihnen frisches Nussbrot","pro Person","CHF",14,null,null,"CHF",{"$f":"IF(F65=0,0,IF(F65<5,D65*5,IF(F65>=5,D65*F65)))","v":0}]
["Fleisch Platte \n(100g Fleisch pro Person)\nTrockenfleisch, Rohschinken, Speck, Salami, Aufschnitt\ngarniert mit Essiggurken, Silberzwiebeln und Tomaten\ndazu servieren wir Ihnen frisches Brot\n","pro Person","CHF",16,null,null,"CHF",{"$f":"IF(F66=0,0,IF(F66<5,D66*5,IF(F66>=5,D66*F66)))","v":0}]
["Vegane Platte     \nPita Brot mit Hummus, Edamame, Oliven, Dörrtomaten und Falafel","pro Person","CHF",12.5,null,null,"CHF",0]
["Mediterane Platte \n(100g pro Person)\nMariniertes, gegrilltes Gemüse, \ngefüllte Peperoni, Oliven, Feta oder Parmesan\ndazu servieren wir Ihnen ofenfrisches Focacciabrot","pro Person","CHF",29.5,null,null,"CHF",{"$f":"IF(F68=0,0,IF(F68<5,D68*5,IF(F68>=5,D68*F68)))","v":0}]
["Mezze Platte \nPita Brot mit Baba Ganoush, Hummus, Poulet Spiesse, \nglasierte Pilze, Feta Spinat Salat, Tabbuleh und \nDatteln im Speckmantel","pro Person","CHF",23,null,null,"CHF",0]
["Warme Häppchen\nWarme Häppchen ab 10 Personen bestellbar "]
["Gemüse-Frühlingsrolle","pro Person","CHF",5.2,null,null,"CHF",{"$f":"IF(F71=0,0,IF(F71<5,D71*10,IF(F71>=10,D71*F71)))","v":0}]
["Chäschüechli","pro Stück","CHF",3.5,null,null,"CHF",0]
["Poulet-Satay Spiessli","pro Stück","CHF",4.2,null,null,"CHF",0]
["Hackbällchen in Tomatensauce, serviert im Glas","pro Person","CHF",6.5,null,null,"CHF",0]
["Schinkengipfel","pro Stück","CHF",3.5,null,null,"CHF",0]
["Fisch-Knusperli mit Sauce Tartar","pro Person","CHF",10.5,null,null,"CHF",0]
["Gemüsestrudel","pro Person","CHF",6.5,null,null,"CHF",0]
["Chicken Nuggets mit Dip Sauce","pro Person","CHF",8.5,null,null,"CHF",0]
["Mini Hot Dog","pro Stück","CHF",2.5,null,null,"CHF",0]
["Samosas","pro Stück","CHF",4.5,null,null,"CHF",0]
["Hot Jalapenos mit Sauerrahm Dip","pro Stück","CHF",3,null,null,"CHF",0]
["Patatas Bravas ","pro Person","CHF",5.3,null,null,"CHF",0]
["Datteln im Speckmantel","pro Stück","CHF ",2,null,null,"CHF",0]
["Tortilla de Patatas","pro Person","CHF",6.2,null,null,"CHF",0]
["Schnitzelbrot mit Tartarsauce (Poulet)","pro Stück","CHF",7.5,null,null,"CHF",0]
["Elsässer Flammkuchen\n(ausreichend für ca. 6 Personen)","pro Stück","CHF",13.5,null,null,"CHF",0]
["Hausgemachte Gemüse Quiche \n(ausreichend für ca. 6 Personen)","pro Stück","CHF",6.5,null,null,"CHF",0]
["Snacks"]
["Kartoffelchips Paprik","pro Person","CHF",1.8,null,null,"CHF",{"$f":"IF(F89=0,0,IF(F89<5,D89*10,IF(F89>=10,D89*F89)))","v":0}]
["Kartoffelchips Salz","pro Person","CHF",1.8,null,null,"CHF",0]
["Gemüsechips","pro Person","CHF",3.5,null,null,"CHF",0]
["Salznüssli","pro Person","CHF",2.5,null,null,"CHF",0]
["Salzstängeli","pro Person","CHF",2.5,null,null,"CHF",0]
["Nachos mit Guacamole ","pro Person","CHF",5.5,null,null,"CHF",0]
["Nachos mit Salsa Dip ","pro Person","CHF",5.5,null,null,"CHF",0]
["Salzige Blätterteigstangen","pro Person","CHF",1.8,null,null,"CHF",0]
["Marinierte Oliven ","pro Person","CHF",4.2,null,null,"CHF",0]
["Around the World"]
["Gerne offerieren wir Ihnen ein massgeschneidertes Angebot in dem wir Ihnen Speisen rund um den Globus zusammenstellen. \nGanz nach Ihrem Geschmack stellen wir verschiedene Speisen auch für \nAllergiker oder spezielle Themen-Events zusammen.\t                                                            Lieferbar ab 15 Personen\n\nPreis je nach gewünschten Speisen auf Anfrage"]

{"sheet":"Lunch","index":3,"n_rows":40,"n_cols":8,"rows_kept":40,"cut":false,"hidden":false,"merged":[[2,0,2,7]]}
[" Bestellung Catering"]
[]
[]
["Navigieren Sie ganz unkompiziert durch das Bestellformular."]
[null,"Einheit",null,"Preis/Einheit",null,"Anzahl",null,"Total"]
["Lunch"]
["Lunchpakete kalt\nDeklarationen je nach Ihrer Bestellung"]
["Einfacher Lunch\nSandwich gefüllt mit Schinken, Salami oder Käse\nSaisonale Frucht  \nSchoggiriegel ","pro Person","CHF",14,null,null,"CHF",{"$f":"IF(F8=0,0,IF(F8<5,D8*5,IF(F8>=5,D8*F8)))","v":0}]
["Swiss Lunch\nPartybrötli mit Bündnerfleisch oder Schweizer Käse\nHörnlisalat \nKalte Platte (Käse- und Fleisch gemischt) mit Nussbrot\nSaisonaler Fruchtspiess\nLindor Kugel","pro Person","CHF",32,null,null,"CHF",{"$f":"IF(F9=0,0,IF(F9<5,D9*5,IF(F9>=5,D9*F9)))","v":0}]
["Vegi Lunch\nProteinbrötli mit Hüttenkäse, Avocado und Kresse\nMini Wrap mit Frischkäse\nGemischter Salat mit Balsamico Dressing\nMüsliriegel\nJogurt mit saisonalen Früchten   ","pro Person","CHF",29,null,null,"CHF",0]
["Salat im Glas"]
["Gemischter Saisonsalat mit Kernen & Nüssen  ","pro Stück","CHF",2.6,null,null,"CHF",{"$f":"IF(F12=0,0,IF(F12<10,D12*10,IF(F12>=10,D12*F12)))","v":0}]
["Griechischer Salat","pro Stück","CHF",2.8,null,null,"CHF",{"$f":"IF(F13=0,0,IF(F13<10,D13*10,IF(F13>=10,D13*F13)))","v":0}]
["Quinoa Salat mit Feta und Avocado ","pro Stück","CHF",3.5,null,null,"CHF",0]
["Linsensalat mit Rauchlachs ","pro Stück","CHF",3,null,null,"CHF",0]
["Waldorf Salat","pro Stück","CHF",3,null,null,"CHF",0]
["Wurst-Käse Salat","pro Stück","CHF",4,null,null,"CHF",0]
["Gurkensalat mit Dill","pro Stück","CHF",2.5,null,null,"CHF",0]
["Ceasar Salat mit Speck und Croutons","pro Stück","CHF",4.5,null,null,"CHF",0]
["Asiatischer Glasnudelsalat mit Cashew Nüssen","pro Stück","CHF",4.8,null,null,"CHF",0]
["Poulet Tandoori Salat mit Jogurt und Minze ","pro Stück","CHF",4.5,null,null,"CHF",0]
["Avocado Salat mit Mango und Chili","pro Stück","CHF",4.2,null,null,"CHF",0]
["Taboulée Salat mit Minze","pro Stück","CHF",5,null,null,"CHF",0]
["Risoni Salat mit Kräutern, Gurken, Oliven und Tomate","pro Stück","CHF",3.5,null,null,"CHF",0]
["Crevetten Salat Thai Style mit Chili, Limetten und Koriander","pro Stück","CHF",7.2,null,null,"CHF",0]
["Salat Add-Ons",null,null,null,null,null,null,0]
["Gegrillte Pouletbruststreifen","pro Person","CHF",6.2,null,null,"CHF",0]
["Shrimp","pro Person","CHF",6.5,null,null,"CHF",0]
["Fetakäse","pro Person","CHF",3.5,null,null,"CHF",0]
["Gegrillte Rindfleischstreifen","pro Person","CHF",9.5,null,null,"CHF",0]
["Suppen im Weck-Glas\nab 10 Personen bestellbar",null,null,null,null,null,null,0]
["Kalte Gazpacho","pro Stück","CHF",3.5,null,null,"CHF",0]
["Tomatensuppe mit Sahne Häubchen","pro Stück","CHF",3.5,null,null,"CHF",0]
["Kalte Avocado-Kokossuppe","pro Stück","CHF",4.9000000000000004,null,null,"CHF",0]
["Linsen-Ingwer Suppe mit Apfelwürfel","pro Stück","CHF",3.5,null,null,"CHF",0]
["Red Thai Currysoup","pro Stück","CHF",3.5,null,null,"CHF",0]
["Lunch warm\nab 10 Personen bestellbar"]
["Tapas Lunchpaket\nAlbondigas\nPatatas Bravas\nQuesadillas (Käse-Chili Füllung)\nDatteln im Speckmantel\nTortilla","pro Person","CHF",19,null,null,"CHF",{"$f":"IF(F38=0,0,IF(F38<10,D38*10,IF(F38>=10,D38*F38)))","v":0}]
["Pasta Plausch \nZweierlei Pasta mit zwei Saucen\nBolognese-, Carbonara-, Napoli- oder Pesto Sauce\nDazu geriebener Parmesan","pro Person","CHF",10.5,null,null,"CHF",{"$f":"IF(F39=0,0,IF(F39<10,D39*10,IF(F39>=10,D39*F39)))","v":0}]
["Tagesmenu aus dem Restaurant","pro Person","CHF",13.5,null,null,"CHF",0]

{"sheet":"Dessert","index":4,"n_rows":30,"n_cols":8,"rows_kept":30,"cut":false,"hidden":false,"merged":[[2,0,2,7]]}
[" Bestellung Catering"]
[]
[]
["Navigieren Sie ganz unkompiziert durch das Bestellformular."]
[null,"Einheit",null,"Preis/Einheit",null,"Anzahl",null,"Total"]
["Dessert / Süsses\nDesserts ab 5 Personen bestellbar"]
["Saisonales Tagesdessert   ","pro Stück","CHF",2.5,null,null,"CHF",{"$f":"IF(F7=0,0,IF(F7<5,D7*5,IF(F7>=5,D7*F7)))","v":0}]
["Toblerone-Mousse im Glas","pro Stück","CHF",2.5,null,null,"CHF",0]
["Macarons assortiert ","pro Person","CHF",1.9,null,null,"CHF",0]
["Schoko-Kuss","pro Person","CHF",1.8,null,null,"CHF",0]
["Saisonaler Fruchtspiess","pro Stück","CHF",2.5,null,null,"CHF",0]
["Hausgemachtes Mini Pana Cotta mit saisonalen Früchten  ","pro Stück","CHF",2.5,null,null,"CHF",0]
["Hausgemachter Schokoladenkuchen\n","pro Person","CHF",3.5,null,null,"CHF",0]
["Hausgemachter Zitronenkuchen\n","pro Person","CHF",3.5,null,null,"CHF",0]
["Hausgemachter Tiroler Cake\n","pro Person","CHF",3.5,null,null,"CHF",0]
["Hausgemachter Rüeblikuchen","pro Person","CHF",3.5,null,null,"CHF",0]
["Schoggigipfel","pro Stück","CHF",3.5,null,null,"CHF",0]
["Brownie","pro Stück","CHF",2.5,null,null,"CHF",0]
["Mini Patisserie, assortiert","pro Person","CHF",2.5,null,null,"CHF",0]
["Donuts","pro Stück","CHF",2.5,null,null,"CHF",0]
["Muffins\n(Blueberry, Schokolade, Himbeere)","pro Stück","CHF",2.5,null,null,"CHF",0]
["Cookies\n(Schokolade, Macadamia, ChocolateChip, Walnuss, Butter)","pro Person","CHF",4,null,null,"CHF",0]
["Waffel","pro Stück","CHF",3.8,null,null,"CHF",0]
["Chiapudding","pro Stück","CHF",2.5,null,null,"CHF",0]
["Magnum Mini Glace (Classic, Almond, White)","pro Stück","CHF",3.3,null,null,"CHF",0]
["Veganes Panna Cotta mit Fruchttopping","pro Stück","CHF",4.2,null,null,"CHF",0]
["Veganer Apfelstrudel","pro Person","CHF",4.2,null,null,"CHF",0]
["Kichererbsen-Schokoladenmousse","pro Stück","CHF",3.5,null,null,"CHF",0]
["Geburtstagskuchen / -Torte für den speziellen Tag","Absprache"]
["Glace (in der Eistruhe) \nFür Ihre Sitzung stellen wir Ihnen gerne eine Eistruhe mit einer Auswahl an leckerem Glace / Becher in Ihnen Meetingraum. ","Absprache"]

{"sheet":"Getränke","index":5,"n_rows":39,"n_cols":8,"rows_kept":39,"cut":false,"hidden":false,"merged":[[2,0,2,7]]}
[" Bestellung Catering"]
[]
[]
["Navigieren Sie ganz unkompiziert durch das Bestellformular."]
[null,"Einheit",null,"Preis/Einheit",null,"Anzahl",null,"Total"]
["Getränke "]
["Alkoholfreie Getränke"]
["Wasser"]
["Arkina ohne Kohlensäure, PET","0.5 l","CHF",3.4,null,null,"CHF",{"$f":"D9*F9","v":0}]
["Arkina ohne Kohlensäure, Glas","1l","CHF",6,null,null,"CHF",0]
["Arkina mit Kohlensäure, PET","0.5 l","CHF",3.4,null,null,"CHF",0]
["Arkina mit Kohlensäure, Glas","1l","CHF",6,null,null,"CHF",{"$f":"D12*F12","v":0}]
["Flavored Water mit saisonalem Geschmack  ","pro Glas","CHF",1.5,null,null,"CHF",0]
["Säfte und Hausgemachtes"]
["Orangensaft","1 l","CHF",6.5,null,null,"CHF",0]
["Hausgemachter Eistee  ","pro Glas","CHF",2.5,null,null,"CHF",0]
["Süssgetränke"]
["Coca-Cola","4.5 dl","CHF",3.4,null,null,"CHF",{"$f":"D18*F18","v":0}]
["Coca-Cola Light","4.5 dl","CHF",3.4,null,null,"CHF",{"$f":"D19*F19","v":0}]
["Cola Zero","4.5 dl","CHF",3.4,null,null,"CHF",0]
["Fanta","4.5 dl","CHF",3.4,null,null,"CHF",0]
["Sprite","4.5 dl","CHF",3.4,null,null,"CHF",{"$f":"D22*F22","v":0}]
["Fusetea Zitrone","5 dl","CHF",3.4,null,null,"CHF",0]
["Fusetea Pfirsich","5 dl","CHF",3.4,null,null,"CHF",0]
["Rivella rot ","5 dl","CHF",3.4,null,null,"CHF",0]
["Rivella blau ","5 dl","CHF",3.4,null,null,"CHF",0]
["Rivella grün","5 dl","CHF",3.4,null,null,"CHF",0]
["Ramseier Apfelschorle","5 dl","CHF",3.4,null,null,"CHF",0]
["Tee"]
["Diverse Sorten, assortiert","pro Tasse","CHF",2.6,null,null,"CHF",{"$f":"D30*F30","v":0}]
["Kaffee"]
["Frischer Kaffee","pro Tasse","CHF",2.6,null,null,"CHF",{"$f":"D32*F32","v":0}]
["Cappuccino","pro Tasse","CHF",2.6,null,null,"CHF",{"$f":"D33*F33","v":0}]
["Café Latte","pro Tasse","CHF",2.6,null,null,"CHF",0]
["Espresso","pro Tasse","CHF",2.6,null,null,"CHF",0]
["Alkoholische Getränke"]
["Bier"]
["Feldschlösschen","3.3 dl","CHF",3.5,null,null,"CHF",{"$f":"D38*F38","v":0}]
["Feldschlösschen\t","3.3 dl","CHF",3.5,null,null,"CHF",{"$f":"D39*F39","v":0}]